Cogmind - Beta 13 X3 @@@ ROGUE MODE // 2024.02.26 @ 04:44:00 // Winter2019/RPGLIKE Player: H3-RMN Result: Destroyed by G-67 Veteran with Field Laser Performance ------------- Evolutions (6) 3000 Regions Visited (30) 6000 Robots Destroyed (458) 2290 Value Destroyed (26784) 26784 Prototype IDs (118) 2360 Alien Tech Used (0) 0 Bonus (15591) 15591 TOTAL SCORE: 56025 Bonus ------- High Alert Combat Kills 4794 Follower Combat Kills 5221 Entered Garrisons 1800 Used RIF Installer 4500 Aligned with FarCom 300 Friendly Fire -1024 Cogmind --------- Core Integrity 0/1700 Matter 250/300 Energy 153/350 System Corruption 20% Temperature Cool (9) Movement Hovering (90) Location -4/Garrison Parts ------- > --- POWER (2) -------- Quantum Reactor > --- PROPULSION (4) --- Myomer Leg Myomer Leg Myomer Leg Combat Linear Gravjet > --- UTILITY (12) ----- Experimental Power Amplifier Gravity Neutralizer Experimental Sensor Array Experimental Signal Interpreter Modified TNC Centrium Light Armor Plating Relay Coupler [NC] (64) Relay Coupler [Swarmer] (84) Relay Coupler [Grunt] (1) Relay Coupler [Proto] (5) > --- WEAPON (4) ------- Coil Gun Coil Gun Improved Plasma Cutter > --- INVENTORY (5) ---- Improved Powered Armor Energy Mantle Authchip [Device] Cooled Proton Cannon Experimental Thermic Cannon Peak State ------------ > --- POWER ------------ Light Fission Core Light Quantum Reactor > --- PROPULSION ------- Improved Diametric Drive Cooled Q-thruster Cooled Q-thruster Cooled Q-thruster > --- UTILITY ---------- Experimental Power Amplifier Gravity Neutralizer Experimental Sensor Array Experimental Signal Interpreter Modified TNC Experimental Core Analyzer Experimental Phase Shifter Centrium Medium Armor Plating Improved Remote Shield Relay Coupler [NC] Relay Coupler [Grunt] > --- WEAPON ----------- Cooled Proton Cannon Hypervelocity Gauss Rifle Improved Remote Datajack > --- INVENTORY -------- Centrium Leg Improved Powered Armor Improved Energy Mantle Experimental Thermic Cannon Improved Plasma Cutter [Rating: 153] Favorites ----------- Power Mini Fusion Reactor Engine Improved Deuterium Engine Power Core Light Fission Core Reactor Mini Fusion Reactor Propulsion Combat Linear Gravjet Treads Light Treads Leg Myomer Leg Wheel High-density Centrium Wheel Hover Unit Combat Linear Gravjet Flight Unit Biomechanical Wings Utility Modified TNC Device Experimental Sensor Array Storage Advanced Energy Well Processor Modified TNC Hackware Relay Coupler [NC] Protection Powered Armor Weapon Improved Remote Datajack Energy Gun Heavy Tesla Rifle Energy Cannon Cooled Proton Cannon Ballistic Gun Hypervelocity Gauss Rifle Ballistic Cannon Assault Cannon Launcher Rocket Launcher Special Weapon Improved Remote Datajack Impact Weapon Thunder Hammer Build | -11 -10 -10 -9 -9 -9 -8 -8 -8 -8 -8 -7 -7 -7 -7 -6 -6 -6 -6 -6 -6 -5 -5 -5 -5 -5 -5 -4 -4 -4 -4 ------- Run | Yrd Mat Min Mat Min Exi Min Mat Gar Mat Gar Fac Gar Fac Gar Fac Was Fac Gar Fac Gar Fac Was Fac Gar Fac Gar Fac Was Fac Gar Slots Evolved 18 | 3 2 . 4 . 2 . . 2 1 . . . . . . . . . . 1 1 . . . . . 2 . . . Power 1 | . . . 1 . . . . . . . . . . . . . . . . . . . . . . . . . . . Propulsion 3 | 1 . . 1 . 1 . . . . . . . . . . . . . . . . . . . . . . . . . Utility 11 | 2 2 . 2 . . . . 2 1 . . . . . . . . . . 1 . . . . . . 1 . . . Weapon 3 | . . . . . 1 . . . . . . . . . . . . . . . 1 . . . . . 1 . . . Parts Attached 399 | 4 14 4 17 3 3 4 7 8 21 10 11 13 19 39 23 2 12 11 8 24 32 2 12 22 14 27 7 5 20 1 Power 28 | 1 3 . 1 . . 2 1 1 1 . 2 . 2 . . . 1 . . 1 . . 3 2 1 4 . 1 1 . Engine 11 | 1 1 . . . . 1 . 1 1 . . . 1 . . . . . . . . . . . . 3 . 1 1 . Core 9 | . 2 . 1 . . 1 1 . . . . . 1 . . . . . . 1 . . 1 1 . . . . . . Reactor 8 | . . . . . . . . . . . 2 . . . . . 1 . . . . . 2 1 1 1 . . . . Propulsion 67 | . 3 . 4 . 1 . 2 . . 1 . . . 10 11 . 1 . 3 . 7 . . 10 8 . . . 6 . Treads 9 | . . . . . . . . . . . . . . 6 1 . . . . . . . . 2 . . . . . . Leg 5 | . . . . . . . . . . . . . . . . . . . . . . . . 2 . . . . 3 . Wheel 1 | . . . . . . . . . . . . . . . . . . . . . 1 . . . . . . . . . Hover 17 | . . . . . . . . . . . . . . . . . . . . . . . . 6 8 . . . 3 . Flight 35 | . 3 . 4 . 1 . 2 . . 1 . . . 4 10 . 1 . 3 . 6 . . . . . . . . . Utility 196 | 2 5 2 7 1 1 . 4 4 11 5 7 9 15 16 10 2 10 8 4 17 13 2 9 8 3 9 6 1 4 1 Device 93 | 2 3 1 2 1 . . 1 1 6 2 1 2 6 7 8 1 7 5 3 6 6 2 4 3 3 3 3 1 2 1 Storage 3 | . . . . . . . . . . . . 1 . . . . 1 . . . 1 . . . . . . . . . Processor 10 | . 1 . 1 . 1 . . 1 . . . . 1 . . . . . . 1 . . 3 . . 1 . . . . Hackware 44 | . . . . . . . . . 2 3 2 4 4 8 1 . . 3 . 6 3 . . 3 . 4 1 . . . Protection 46 | . 1 1 4 . . . 3 2 3 . 4 2 4 1 1 1 2 . 1 4 3 . 2 2 . 1 2 . 2 . Artifact . | . . . . . . . . . . . . . . . . . . . . . . . . . . . . . . . Weapon 108 | 1 3 2 5 2 1 2 . 3 9 4 2 4 2 13 2 . . 3 1 6 12 . . 2 2 14 1 3 9 . Energy Gun 8 | . . . . . . . . . 1 . . 2 . 1 1 . . . . . . . . . . . . . 3 . Energy Cannon 17 | . . . . . . . . . 1 1 . . . . . . . . . . 4 . . 1 . 7 . 2 1 . Ballistic Gun 20 | 1 . . . . 1 . . 1 3 . . . . . . . . 2 1 3 2 . . . . 3 . . 3 . Ballistic Cannon 4 | . 1 1 . . . . . . 1 . . . . 1 . . . . . . . . . . . . . . . . Launcher 12 | . . . 3 1 . 1 . 1 . 1 . . . 5 . . . . . . . . . . . . . . . . Special Weapon 33 | . . . . . . . . . . 2 . 1 2 6 1 . . 1 . 3 6 . . 1 2 4 1 1 2 . Impact Weapon 14 | . 2 1 2 1 . 1 . 1 3 . 2 1 . . . . . . . . . . . . . . . . . . Slashing Weapon . | . . . . . . . . . . . . . . . . . . . . . . . . . . . . . . . Piercing Weapon . | . . . . . . . . . . . . . . . . . . . . . . . . . . . . . . . Special Melee Weapon . | . . . . . . . . . . . . . . . . . . . . . . . . . . . . . . . Unidentified Prototypes 16 | . . 1 . . . . . . 2 . . . 1 . 2 . . . . . 8 . 1 . 1 . . . . . Corrupted Parts 4 | . . . . . . . 1 . . . . . . 1 . . . 1 . . . . . . . . . . 1 . System Corruption 15 | . . . . . . . 1 . . . . . . 8 . . . 5 . . . . . . . . . . 1 . Parts Lost 20 | . . . . 1 . . 2 1 . . . 1 . 1 . . 1 2 2 2 . . . . . 2 . 2 2 1 Power 4 | . . . . . . . . 1 . . . . . . . . . . . 1 . . . . . 1 . . . 1 Propulsion 4 | . . . . . . . . . . . . . . 1 . . . . 1 . . . . . . . . 2 . . Utility 9 | . . . . 1 . . 2 . . . . 1 . . . . 1 1 1 1 . . . . . 1 . . . . Weapon 3 | . . . . . . . . . . . . . . . . . . 1 . . . . . . . . . . 2 . Highest Loss Streak 2 | . . . . 1 . . 1 1 . . . 1 . 1 . . 1 1 1 1 . . . . . 1 . 2 1 1 To Critical Strikes 2 | . . . . . . . . . . . . . . 1 . . . . . . . . . . . . . . 1 . Average Slot Usage (%) 90 | . 78 100 97 95 88 78 78 75 75 76 75 80 80 96 99 100 100 98 97 99 99 100 100 99 99 98 100 96 89 97 Engine 2 | . 5 . 4 7 6 6 6 5 5 5 5 5 3 . . . . . . . . . . . . . 4 4 3 2 Core 4 | . 6 11 8 7 6 6 6 5 5 5 2 . 1 5 5 5 5 5 5 4 5 5 5 5 5 3 . . . . Reactor 3 | . . . . . . . . . . . 2 5 5 5 5 5 5 5 5 5 5 5 5 5 5 5 4 4 4 4 Treads 1 | . . . . . . . . . . . . . . 15 5 . . . . . . . . . . . . . . . Hover 4 | . . . . . . . . . . . . . . . . . . . . . . . . 17 19 20 19 17 7 4 Flight 8 | . 13 22 24 23 15 6 6 5 5 5 5 5 5 3 16 22 22 22 20 21 20 20 20 1 . . . . . . Device 20 | . 31 33 26 23 28 26 26 23 22 17 16 16 13 12 12 11 20 22 26 24 21 25 25 25 25 22 21 18 17 18 Processor 12 | . 7 11 9 15 14 13 13 16 11 11 11 11 13 14 11 11 11 11 11 10 10 10 10 15 15 13 9 9 9 9 Hackware 14 | . . . . . . . . . 6 14 14 19 19 24 31 27 21 17 15 15 18 15 14 10 10 14 20 22 20 18 Protection 4 | . . 11 13 9 6 6 4 5 4 5 5 4 5 3 . 5 1 1 . 4 4 5 4 5 5 4 3 4 4 9 Energy Cannon 1 | . . . . . . . . . . . . . . . . . . . . . . . . 4 5 4 4 4 3 4 Ballistic Gun 2 | . 5 . . . 2 1 . . 2 . . . . . . . . 1 5 6 8 5 5 5 5 4 4 4 3 9 Launcher 1 | . . . . . . 4 6 4 5 1 . . . 2 3 . . . . . . . . . . . . . . . Special Weapon 3 | . . . . . . . . . . 3 5 4 5 2 4 5 5 5 5 3 4 10 10 5 5 5 5 6 3 4 Impact Weapon 2 | . 6 10 8 7 4 4 6 4 1 5 5 4 5 4 . . . . . . . . . . . . . . . . Naked Turns . | . . . . . . . . . . . . . . . . . . . . . . . . . . . . . . . Heaviest Build 91 | 6 13 15 22 21 27 35 32 46 46 49 57 52 57 48 37 36 38 40 45 46 55 48 57 76 81 81 79 79 91 91 Greatest Support 102 | 8 18 18 22 22 60 60 60 60 60 60 60 60 60 90 90 47 47 40 47 47 55 55 58 80 80 80 80 80 102 102 Greatest Overweight (x) 3 | . . . 1 . . . 2 3 . . . . . 3 1 . . . 1 . 1 . 1 2 1 1 2 1 2 . Average Overweight (x) . | . . . . . . . . . . . . . . . . . . . . . . . . . . . . . . . Largest Inventory Capacity 5 | 2 2 2 3 3 3 3 3 3 3 3 3 3 4 4 5 5 5 5 5 5 5 5 5 5 5 5 5 5 5 5 Average Capacity 4 | 2 2 2 2 3 3 3 3 3 3 3 3 3 3 4 4 5 5 5 5 5 5 5 5 5 5 5 5 5 5 5 Most Carried 5 | 2 2 2 3 3 3 3 3 3 3 3 3 3 4 4 5 5 5 5 5 5 5 5 5 5 5 5 5 5 5 5 Average Carried 3 | . 1 2 2 2 3 2 3 2 2 2 2 2 3 3 4 4 4 4 4 4 4 4 4 4 4 4 4 4 4 4 Final Capacity 5 | 2 2 2 3 3 3 3 3 3 3 3 3 3 4 4 5 5 5 5 5 5 5 5 5 5 5 5 5 5 5 5 Final Carried 5 | 1 2 2 3 3 3 3 3 3 3 3 1 3 4 4 4 5 5 5 5 5 5 5 5 5 5 4 3 5 5 5 Class Distribution -------------------- 23% | Hacker-Scout 18% | Hacker-Mutant 10% | Botlord-Scout 10% | Bothacker-Scout 9% | Hacker-Ninja 7% | Ninja 3% | Bothacker-Mutant Dominant Class ---------------- Mutant | -10/Materials Ninja | -10/Mines Ninja | -9/Materials Ninja | -9/Mines Scout | -9/Exiles Ninja | -8/Mines Ninja | -8/Materials Hacker-Ninja | -8/Garrison Hacker-Scout | -8/Materials Hacker-Ninja | -8/Garrison Hacker-Mutant | -7/Factory Hacker-Mutant | -7/Garrison Hacker-Mutant | -7/Factory Hacker-Mutant | -7/Garrison Bothacker-Scout | -6/Factory Bothacker-Sprinter | -6/Waste Bothacker-Scout | -6/Factory Bothacker-Scout | -6/Garrison Bothacker-Scout | -6/Factory Botlord-Scout | -6/Garrison Bothacker-Scout | -5/Factory Hacker-Scout | -5/Waste Hacker-Scout | -5/Factory Hacker-Scout | -5/Garrison Hacker-Scout | -5/Factory Botlord-Scout | -5/Garrison Botlord-Scout | -4/Factory Botlord-Scout | -4/Waste Botlord-Skirmisher | -4/Factory Hacker-Tank | -4/Garrison Resources | -11 -10 -10 -9 -9 -9 -8 -8 -8 -8 -8 -7 -7 -7 -7 -6 -6 -6 -6 -6 -6 -5 -5 -5 -5 -5 -5 -4 -4 -4 -4 ----------- Run | Yrd Mat Min Mat Min Exi Min Mat Gar Mat Gar Fac Gar Fac Gar Fac Was Fac Gar Fac Gar Fac Was Fac Gar Fac Gar Fac Was Fac Gar Matter Collected 13342 | 286 309 66 107 187 . 166 73 183 839 190 300 192 485 576 1092 . 13 339 260 1496 1147 455 434 1287 1063 1165 108 169 355 . Remotely 614 | . 164 . . . . . . . 450 . . . . . . . . . . . . . . . . . . . . . Salvage Created 22550 | 87 512 18 312 267 . 174 764 1419 1023 479 1187 1427 1239 1270 342 . . 106 233 875 1134 1909 479 1879 1772 2681 264 469 229 . Parts 1000 | 11 30 2 23 12 . 21 23 46 66 22 27 29 36 57 9 . 8 23 10 52 57 33 44 125 96 110 13 6 9 . Haulers Intercepted 6 | . 1 . 1 . . . . . 1 . . . . . 1 . . . 1 . . . . . 1 . . . . . Recyclers Shooed 4 | . . . . . . . 1 . . . . . . . . . . . . . 1 . . . 2 . . . . . Parts Field Recycled . | . . . . . . . . . . . . . . . . . . . . . . . . . . . . . . . Retrieved Matter . | . . . . . . . . . . . . . . . . . . . . . . . . . . . . . . . Parts Self-Destructed . | . . . . . . . . . . . . . . . . . . . . . . . . . . . . . . . Prevented . | . . . . . . . . . . . . . . . . . . . . . . . . . . . . . . . Kills | -11 -10 -10 -9 -9 -9 -8 -8 -8 -8 -8 -7 -7 -7 -7 -6 -6 -6 -6 -6 -6 -5 -5 -5 -5 -5 -5 -4 -4 -4 -4 ------- Run | Yrd Mat Min Mat Min Exi Min Mat Gar Mat Gar Fac Gar Fac Gar Fac Was Fac Gar Fac Gar Fac Was Fac Gar Fac Gar Fac Was Fac Gar Combat Hostiles Destroyed 401 | . 13 . 11 11 . 10 19 24 26 13 27 24 29 37 5 . 4 8 2 12 14 1 9 31 24 38 5 1 3 . Melee 87 | . 1 . 2 5 . 1 11 10 4 4 10 13 14 12 . . . . . . . . . . . . . . . . Guns 141 | . 9 . . . . 3 . 2 17 . . . . . 2 . 3 6 2 12 13 1 9 23 15 20 2 1 1 . Cannons 24 | . . . . . . . . . 2 . . . . . . . . . . . . . . 5 6 8 3 . . . AOE 42 | . . . 7 3 . 6 . 4 3 1 1 . . 8 2 . . . . . . . . 3 2 2 . . . . Classes Destroyed 21 | 1 6 . 1 1 . . 1 3 . 1 2 . . 1 1 . . 1 . . . 1 . . . . 1 . . . Worker 11 | . . . . 1 . 1 2 . . . . . 3 . . . . . . . . . . . 4 . . . . . Builder 8 | . 1 . . . . 1 . . . . . . . . . . . . 1 . 2 . 1 . 2 . . . . . Tunneler 8 | 4 . 1 . . . 2 . . 1 . . . . . . . . . . . . . . . . . . . . . Hauler 6 | . 1 . 1 . . . . . 1 . . . . . 1 . . . 1 . . . . . 1 . . . . . Recycler 5 | . . . . . . . 1 . 1 . . . . . . . . . . . 2 . 1 . . . . . . . Operator 5 | . 1 . . . . . . . 1 . . . 1 . . . . . . . . . 1 . 1 . . . . . Drone 1 | . . . . . . . . . . . . . . . . . . . . . . . . . . . 1 . . . Watcher 12 | . 1 . 1 . . . . . 4 1 1 . 1 . . . . . . 1 . . . 1 1 . . . . . Swarmer 78 | . 3 . 6 7 . 4 . 3 5 . . 5 1 10 2 . 2 1 . 2 1 . 1 9 3 13 . . . . Cutter 12 | . . . . . . . . . . 2 5 3 . 1 . . . . . . . . . . . . 1 . . . Grunt 174 | . 10 1 2 4 . 6 15 11 10 8 16 5 12 5 1 . 1 4 . 4 8 . . 18 9 21 3 . . . Brawler 5 | . . . . . . . . . . . . . . 2 1 . . . . . . . . . 1 1 . . . . Duelist 2 | . . . . . . . . 1 . . 1 . . . . . . . . . . . . . . . . . . . Protector 2 | . . . . . . . . . . . 1 . 1 . . . . . . . . . . . . . . . . . Sentry 55 | . . . 3 . . . 4 5 10 1 2 6 3 9 . . 1 1 . . 4 . 4 1 1 . . . . . Specialist 6 | . . . . . . . . 2 . 2 . . . . . . . . . 2 . . . . . . . . . . Hunter 28 | . . . . . . . . 2 1 . 1 2 5 5 . . . . 2 2 . . . 2 2 1 . . 3 . Programmer 34 | . . . . . . . . . . . 1 4 7 5 . . . 1 . 3 . . 4 1 8 . . . . . Heavy 2 | . . . . . . . . . . . . . . . 1 . . . . . 1 . . . . . . . . . Behemoth 3 | . . . . . . . . . . . . . . . . . . 1 . . . . . . . 2 . . . . Compactor 2 | . . . . . . . . . . . . . . . . . . . . . . 1 . . . . . 1 . . Best Kill Streak 9 | 2 5 1 9 6 . 4 4 4 6 7 6 9 7 4 2 . 1 2 2 2 5 1 5 5 8 4 4 1 1 . Combat Bots Only 9 | . 4 . 8 5 . 4 4 4 6 6 6 9 7 4 2 . 1 2 1 2 4 1 2 5 3 4 4 1 1 . Max Kills in Single Turn 5 | 1 1 1 5 2 . 3 1 2 2 1 1 1 1 3 2 . 1 1 1 1 2 1 2 3 3 2 1 1 1 . Gunslinging . | . . . . . . . . . . . . . . . . . . . . . . . . . . . . . . . Exploded 5 | . . . 5 2 . 3 . 2 2 1 1 . . 3 2 . . . . . . . . 3 1 1 . . . . Melee 1 | . 1 . 1 1 . 1 1 1 1 1 1 1 1 1 . . . . . . . . . . . . . . . . Uniques/NPCs Destroyed . | . . . . . . . . . . . . . . . . . . . . . . . . . . . . . . . Combat | -11 -10 -10 -9 -9 -9 -8 -8 -8 -8 -8 -7 -7 -7 -7 -6 -6 -6 -6 -6 -6 -5 -5 -5 -5 -5 -5 -4 -4 -4 -4 -------- Run | Yrd Mat Min Mat Min Exi Min Mat Gar Mat Gar Fac Gar Fac Gar Fac Was Fac Gar Fac Gar Fac Was Fac Gar Fac Gar Fac Was Fac Gar Hostile Shots Fired 4267 | . 92 . 47 41 . 28 89 81 140 119 317 469 398 361 120 . 177 204 81 201 101 . 111 215 300 396 29 3 93 54 Missed 1680 | . 29 . 15 13 . 14 29 32 41 38 135 228 164 100 49 . 104 83 25 72 44 . 63 120 100 127 12 1 25 17 Damage Taken 32468 | . 624 . 714 420 . 246 943 804 1534 1189 2282 1672 2607 2402 1182 . 1274 1562 741 1900 931 . 597 1362 2721 2896 378 40 738 709 Core 22286 | . 527 . 482 274 . 194 690 541 950 768 1447 1044 1664 1493 953 . 861 1240 603 1281 722 . 425 968 1882 1955 284 31 519 488 Absorbed by Shields 9243 | . . . . . . . . . 48 358 497 722 652 672 151 . . 414 205 449 278 . 179 420 1494 2127 90 39 351 97 Redirected to Core 18653 | . 288 . 346 249 . 152 580 412 854 654 1290 908 1515 1336 699 . 754 953 469 1036 539 . 350 792 1668 1663 256 31 442 417 Ignored by Resistances 15 | . . . . . . . 4 6 . . . . . . . . . . . . . . 5 . . . . . . . Regen/Repaired (Parts) 1480 | . 18 . . . . . . . 524 . . . 145 . 55 . 34 . 160 . . . 225 . 4 . . . 315 . Core Remaining (%) 67 | 100 . 73 . . . 33 . . . 76 . . . 66 . . . . . 100 . . . . . 24 . . . . Volleys Fired 1875 | 46 90 4 7 2 . 7 . 7 145 17 20 13 37 20 100 . 32 83 58 205 106 92 72 234 193 220 23 17 21 4 Largest 3 | 1 1 1 1 1 . 1 . 1 1 1 1 2 1 1 1 . 1 1 1 2 2 1 1 2 2 2 2 2 3 3 Hottest 213 | 20 35 35 36 33 . 33 . 33 44 33 7 100 7 60 70 . 70 70 30 65 114 33 33 73 73 153 73 153 213 100 Shots Fired 2135 | 46 90 4 7 2 . 19 . 16 144 17 20 17 37 22 100 . 32 83 58 246 169 92 72 248 218 271 38 25 33 9 Gun 1537 | 46 77 . . . . 12 . 9 118 . . 8 . 1 30 . 28 76 50 225 124 87 61 190 166 166 17 10 28 8 Cannon 262 | . 13 4 . . . . . . 24 . . . . 1 . . . . . . 11 . . 51 37 94 15 9 2 1 Launcher 37 | . . . 7 2 . 7 . 7 2 1 . . . 10 1 . . . . . . . . . . . . . . . Special 299 | . . . . . . . . . . 16 20 9 37 10 69 . 4 7 8 21 34 5 11 7 15 11 6 6 3 . Kinetic 1430 | 46 90 4 . . . 12 . 9 142 . . . . 1 . . . 10 50 225 124 87 61 190 166 166 17 10 12 8 Thermal 26 | . . . . . . . . . . . . . . . . . . . . . . 5 . 1 . 8 . 8 4 . Explosive 35 | . . . 5 2 . 7 . 7 2 1 . . . 10 1 . . . . . . . . . . . . . . . Electromagnetic 351 | . . . 2 . . . . . . . . 8 . 1 30 . 28 66 . . 11 . . 51 37 86 15 1 14 1 Robot Hit Streak 26 | 7 19 . 1 3 . 12 . 7 19 4 8 13 9 11 10 . 10 9 6 26 18 19 10 12 13 19 11 13 9 5 Robot Miss Streak 7 | 4 5 . 1 . . 1 . 4 6 3 1 1 2 1 4 . 2 4 3 7 2 2 1 5 4 6 1 3 5 2 Penetration Max 3 | . . . . . . . . . 1 . . . . . . . . . 1 1 3 . 1 2 3 2 1 . . . Secondary Targets . | . . . . . . . . . . . . . . . . . . . . . . . . . . . . . . . Autonomous 21 | . . . . . . 12 . 9 . . . . . . . . . . . . . . . . . . . . . . Shots Hit Robots 1944 | 25 66 1 17 14 . 21 53 60 124 57 80 69 108 94 73 . 22 49 34 146 126 78 57 160 156 182 30 16 20 6 Core Hits 675 | 8 24 2 15 4 . 21 13 20 47 4 9 7 13 28 12 . 9 17 9 47 42 18 27 93 79 81 14 3 7 2 Critical Kills 124 | . . . . . . 1 3 1 4 2 4 2 4 4 . . . . . 1 9 6 12 27 18 23 2 1 . . Critical Parts Destroyed 242 | . 1 . 2 7 . 1 12 8 4 13 13 19 22 28 . . . . . 5 13 11 14 24 30 15 . . . . Critical Strikes 411 | . 1 . 3 7 . 2 15 10 9 17 17 21 26 33 . . . 1 . 7 22 31 28 58 49 45 2 7 . . Burn 6 | . . . . . . . . . . . . . . . . . . . . . . . . . . 2 . 4 . . Destroy 241 | . . . . . . . . 2 2 . . . . . . . . . . 7 22 31 28 56 49 39 2 3 . . Blast 1 | . . . . . . . . . 1 . . . . . . . . . . . . . . . . . . . . . Corrupt 7 | . . . . . . . . . . . . . . . . . . 1 . . . . . 2 . 4 . . . . Smash 156 | . 1 . 3 7 . 2 15 8 6 17 17 21 26 33 . . . . . . . . . . . . . . . . Melee Attacks 738 | . 29 2 41 25 . 13 73 85 32 77 70 104 87 100 . . . . . . . . . . . . . . . . Impact 738 | . 29 2 41 25 . 13 73 85 32 77 70 104 87 100 . . . . . . . . . . . . . . . . Slashing . | . . . . . . . . . . . . . . . . . . . . . . . . . . . . . . . Piercing . | . . . . . . . . . . . . . . . . . . . . . . . . . . . . . . . Sneak Attacks 44 | . 5 1 3 1 . 4 3 4 2 5 1 5 5 5 . . . . . . . . . . . . . . . . Combat Hostiles 23 | . 2 . 2 . . . . 4 . 4 1 4 1 5 . . . . . . . . . . . . . . . . Follow-up Attacks . | . . . . . . . . . . . . . . . . . . . . . . . . . . . . . . . Damage Inflicted 53615 | 226 1219 138 1280 739 . 1339 2144 3020 3395 2649 3431 4241 4901 5962 929 . 718 1268 588 3242 2061 603 412 2008 2436 3323 525 308 322 188 Guns 15639 | 226 440 . . . . 373 . 284 1793 . . . . . 658 . 631 1268 588 3242 1828 528 412 1018 1009 752 90 58 286 155 Cannons 5669 | . . . . . . . . . 479 . . . . . . . . . . . 233 . . 864 1014 2325 435 250 36 33 Explosions 4083 | . . 60 641 251 . 666 . 349 142 44 . . . 787 271 . 87 . . . . . . 126 413 246 . . . . Melee 28149 | . 779 78 639 488 . 300 2144 2387 981 2605 3431 4241 4901 5175 . . . . . . . . . . . . . . . . Ramming . | . . . . . . . . . . . . . . . . . . . . . . . . . . . . . . . Kinetic 13509 | 226 440 . . . . 373 . 284 2272 . . . . . . . . 186 588 3242 1828 528 412 1018 1009 752 90 58 48 155 Thermal 1294 | . . 60 . . . . . . . . . . . . . . 87 . . . . 75 . 126 87 550 . 247 62 . Explosive 3364 | . . . 528 251 . 666 . 349 142 44 . . . 787 271 . . . . . . . . . 326 . . . . . Electromagnetic 7299 | . . . 113 . . . . . . . . . . . 658 . 631 1082 . . 233 . . 864 1014 2021 435 3 212 33 Impact 28149 | . 779 78 639 488 . 300 2144 2387 981 2605 3431 4241 4901 5175 . . . . . . . . . . . . . . . . Slashing . | . . . . . . . . . . . . . . . . . . . . . . . . . . . . . . . Piercing . | . . . . . . . . . . . . . . . . . . . . . . . . . . . . . . . Highest Corruption 20 | . . . 2 3 3 3 1 1 1 1 1 1 6 16 4 . 1 11 11 12 3 . 2 . 9 4 1 19 20 20 Average Corruption 5 | . . . 2 2 3 3 1 1 1 1 1 1 2 11 2 . 1 2 11 11 1 . 1 . 4 3 1 8 19 20 Corruption Purged 28 | . . . . . . . . . . . . . 7 2 4 . . . . . 4 . 2 . 9 . . . . . Corruption Blocked . | . . . . . . . . . . . . . . . . . . . . . . . . . . . . . . . Effects 343 | . . . 2 4 1 5 1 9 12 9 3 12 17 91 4 . 1 11 14 59 3 . 4 . 28 26 1 7 17 2 Message Errors 75 | . . . . . 1 2 . 1 2 2 1 5 5 18 . . . 1 2 10 1 . 1 . 8 4 1 1 9 . Matter Fused 81 | . . . . 1 . 2 1 3 4 5 . 3 4 16 2 . 1 1 6 16 1 . 1 . 6 3 . 1 4 . Heat Flow Errors 38 | . . . . . . . . . 1 1 1 1 2 16 1 . . . 1 6 . . . . 2 6 . . . . Energy Discharges 41 | . . . 1 . . . . . 2 . . 2 2 15 . . . 3 3 4 . . . . 4 1 . 1 2 1 Parts Rejected 12 | . . . . . . . . 1 . 1 . . . 2 . . . 2 1 . . . . . 2 2 . 1 . . Parts Fused 3 | . . . . . . . . 1 . . . . . 2 . . . . . . . . . . . . . . . . Data Loss (minor) 43 | . . . . 2 . . . 2 1 . 1 1 . 14 1 . . 3 1 4 . . 1 . 4 7 . . 1 . Data Loss (major) 16 | . . . 1 1 . . . . 1 . . . 3 3 . . . . . 5 . . 1 . 1 . . . . . Misfires 7 | . . . . . . . . . . . . . . 2 . . . . . 4 . . . . . . . 1 . . Alerts 9 | . . . . . . 1 . 1 . . . . 1 3 . . . . . 1 1 . . . . . . . 1 . Misdirections 6 | . . . . . . . . . . . . . . . . . . 1 . 4 . . . . . . . . . 1 Weapon Failures 12 | . . . . . . . . . 1 . . . . . . . . . . 5 . . . . 1 3 . 2 . . Overload Shots . | . . . . . . . . . . . . . . . . . . . . . . . . . . . . . . . Overflow Damage 10818 | . 269 38 130 328 . 117 605 493 381 783 1074 2059 1995 2381 8 . 7 . . . . . . 73 37 40 . . . . Projectiles 160 | . . . . . . . . . . . . . . 10 . . . . . . . . . 73 37 40 . . . . Explosions 118 | . . . . 23 . 9 . . 57 14 . . . . 8 . 7 . . . . . . . . . . . . . Melee 10540 | . 269 38 130 305 . 108 605 493 324 769 1074 2059 1995 2371 . . . . . . . . . . . . . . . . Knockbacks 73 | . 5 . . 1 . 1 5 3 4 4 14 9 16 11 . . . . . . . . . . . . . . . . Impact 67 | . 5 . . 1 . 1 4 3 3 4 13 7 16 10 . . . . . . . . . . . . . . . . Kinetic 1 | . . . . . . . . . 1 . . . . . . . . . . . . . . . . . . . . . Secondary 5 | . . . . . . . 1 . . . 1 2 . 1 . . . . . . . . . . . . . . . . Self-Inflicted Damage 782 | . . . 158 87 . 30 . 56 . 40 . . . 147 . . . . . . . . . 51 108 105 . . . . Shots 20 | . . . 6 2 . 1 . 2 . 1 . . . 3 . . . . . . . . . 1 2 2 . . . . Rammed . | . . . . . . . . . . . . . . . . . . . . . . . . . . . . . . . Targets Rammed . | . . . . . . . . . . . . . . . . . . . . . . . . . . . . . . . Kicked . | . . . . . . . . . . . . . . . . . . . . . . . . . . . . . . . Crushed . | . . . . . . . . . . . . . . . . . . . . . . . . . . . . . . . Highest Temperature 358 | . 24 32 68 . . . . 4 216 107 263 253 260 267 311 . 108 267 123 262 339 9 62 45 200 358 9 306 255 24 Average Temperature 63 | . 6 15 18 . . . . 4 60 26 38 34 74 93 82 . 45 70 67 102 63 4 23 8 33 75 5 121 154 14 Received Heat Transfer 7015 | . 216 . 177 69 . 117 468 279 520 463 309 330 256 347 286 . 117 312 . 513 293 . 131 392 264 983 31 . . 142 Effects 4 | . . . . . . . . . . . . . 1 . 1 . . . . . . . . . . 2 . . . . Energy Bleed 3 | . . . . . . . . . . . . . 1 . 1 . . . . . . . . . . 1 . . . . Short Circuit 1 | . . . . . . . . . . . . . . . . . . . . . . . . . . 1 . . . . Siege Activations . | . . . . . . . . . . . . . . . . . . . . . . . . . . . . . . . Robots Corrupted 16 | . . . . . . . . . . . . . . . 1 . 1 2 . . 1 . . 1 1 7 . . 2 . Combat Hostiles 16 | . . . . . . . . . . . . . . . 1 . 1 2 . . 1 . . 1 1 7 . . 2 . Parts Fried 192 | . 5 3 . 7 . 4 7 10 3 8 19 32 22 26 7 . 5 9 . . 1 . . 4 6 11 1 . 2 . Impact Corruptions 323 | . 10 1 5 13 . 3 23 22 11 26 38 49 58 64 . . . . . . . . . . . . . . . . Robots Melted 1 | . . . . . . . . . . . . . . . . . . . . . . . . . . 1 . . . . Combat Hostiles 1 | . . . . . . . . . . . . . . . . . . . . . . . . . . 1 . . . . Parts Melted 12 | . . . . . . . . . . 1 . . . . 2 . . . . . . . 1 1 3 1 3 . . . Heat Transferred 3036 | . . 100 . . . . . . . . . . . . . . 100 . . . . 185 . 74 100 1160 . 1200 117 . Parts Sabotaged . | . . . . . . . . . . . . . . . . . . . . . . . . . . . . . . . Parts Stolen . | . . . . . . . . . . . . . . . . . . . . . . . . . . . . . . . Parts Stripped . | . . . . . . . . . . . . . . . . . . . . . . . . . . . . . . . Power Chain Reactions 8 | . . . 3 . . . . . . . . . . . . . 1 . . . . . . 1 1 2 . . . . Alert | -11 -10 -10 -9 -9 -9 -8 -8 -8 -8 -8 -7 -7 -7 -7 -6 -6 -6 -6 -6 -6 -5 -5 -5 -5 -5 -5 -4 -4 -4 -4 ------- Run | Yrd Mat Min Mat Min Exi Min Mat Gar Mat Gar Fac Gar Fac Gar Fac Was Fac Gar Fac Gar Fac Was Fac Gar Fac Gar Fac Was Fac Gar Peak Influence 1847 | 20 591 268 1128 808 . 424 580 1656 1179 1776 1001 1342 768 1847 1065 293 442 612 423 1036 671 191 429 1116 683 1095 667 240 249 34 Initial 969 | . 13 226 104 439 . . 165 319 807 746 932 319 704 248 969 275 205 140 310 191 543 189 133 212 585 332 574 222 141 34 Average 659 | 8 355 250 675 717 . 236 384 1138 802 1421 545 895 300 1087 801 281 265 390 361 563 464 190 232 737 506 689 592 222 154 11 Maximum Alert Level 5 | . 2 1 4 3 . 2 2 5 4 5 3 4 3 5 3 1 2 2 2 3 2 . 2 4 2 3 2 1 1 . Low Security (%) 8 | 100 23 . 14 . . 22 11 . . . . . 22 . . . . 15 . 1 4 100 43 . . . . . 83 100 Level 1 22 | . 32 100 5 . . 62 32 2 . . 44 3 58 3 . 100 94 39 88 32 23 . 53 21 13 15 . 100 16 . Level 2 29 | . 44 . 14 37 . 14 55 18 39 . 13 22 13 17 19 . 4 44 11 39 71 . 3 18 86 34 100 . . . Level 3 25 | . . . 62 62 . . . 19 45 20 42 51 5 24 80 . . . . 26 . . . 55 . 50 . . . . Level 4 10 | . . . 1 . . . . 40 15 41 . 22 . 45 . . . . . . . . . 4 . . . . . . Level 5 3 | . . . . . . . . 18 . 38 . . . 9 . . . . . . . . . . . . . . . . High Security . | . . . . . . . . . . . . . . . . . . . . . . . . . . . . . . . Max Security . | . . . . . . . . . . . . . . . . . . . . . . . . . . . . . . . Squads Dispatched 108 | . 4 . 9 . . . 3 . 8 . 10 . 16 . 12 . 7 . 1 . 7 . 13 . 8 . 5 . 5 . Investigation 49 | . 3 . 5 . . . 2 . 3 . 3 . 5 . 5 . 3 . 1 . 3 . 7 . 5 . 1 . 3 . Extermination 14 | . . . . . . . . . . . 1 . 4 . 2 . 1 . . . 2 . 1 . 3 . . . . . Reinforcement 29 | . 1 . 2 . . . 1 . 1 . 6 . 4 . 4 . 3 . . . 1 . 2 . . . 3 . 1 . Assault 4 | . . . 2 . . . . . . . . . . . 1 . . . . . 1 . . . . . . . . . Garrison 12 | . . . . . . . . . 4 . . . 3 . . . . . . . . . 3 . . . 1 . 1 . Intercept . | . . . . . . . . . . . . . . . . . . . . . . . . . . . . . . . Searches Triggered 2 | . . . . . . . . . . . . . . . . . 1 . 1 . . . . . . . . . . . Construction Impeded 3 | . . . . . . . . . . . . . 1 . 1 . . . . . . . 1 . . . . . . . Haulers Reinforced 1 | . . . . . . . . . . . . . . . 1 . . . . . . . . . . . . . . . Active Scanning Responses . | . . . . . . . . . . . . . . . . . . . . . . . . . . . . . . . Cargo Convoy Interrupts 5 | . . . . . . . . . . . 1 . 1 . 1 . . . . . 1 . 1 . . . . . . . Alert ID Control Effect 15 | . . . . . . . . . . . . . . . . . . . . . . . . . 10 3 2 . . . Stealth | -11 -10 -10 -9 -9 -9 -8 -8 -8 -8 -8 -7 -7 -7 -7 -6 -6 -6 -6 -6 -6 -5 -5 -5 -5 -5 -5 -4 -4 -4 -4 --------- Run | Yrd Mat Min Mat Min Exi Min Mat Gar Mat Gar Fac Gar Fac Gar Fac Was Fac Gar Fac Gar Fac Was Fac Gar Fac Gar Fac Was Fac Gar Distress Signals 16 | . 2 . 3 . . . 1 . 5 . 1 . . . . . 2 . . . . . 1 . . . 1 . . . Communications Jammed 262 | . . . . . . . . . . . . . . . 84 . 33 . 21 12 23 . 12 4 49 10 14 . . . Distress Signals 244 | . . . . . . . . . . . . . . . 75 . 27 . 21 12 22 . 12 4 48 10 13 . . . Times Spotted 948 | . 22 . 39 15 . 10 33 36 46 33 63 40 68 42 70 2 39 40 9 37 46 1 49 56 63 57 16 5 7 4 Peak Tracking Total 20 | . 5 . 12 3 . 4 5 6 4 6 12 8 11 4 9 2 20 11 4 4 6 1 12 6 7 5 4 5 2 4 Tactical Retreats 98 | . 2 . 2 2 . . 9 2 3 3 10 4 3 5 2 . 8 10 . 3 2 1 3 14 3 4 2 1 . . Traps | -11 -10 -10 -9 -9 -9 -8 -8 -8 -8 -8 -7 -7 -7 -7 -6 -6 -6 -6 -6 -6 -5 -5 -5 -5 -5 -5 -4 -4 -4 -4 ------- Run | Yrd Mat Min Mat Min Exi Min Mat Gar Mat Gar Fac Gar Fac Gar Fac Was Fac Gar Fac Gar Fac Was Fac Gar Fac Gar Fac Was Fac Gar Traps Triggered 53 | . . . 1 . . . . 3 . 3 1 3 1 4 1 . . 9 . 5 1 . 2 7 1 5 2 . 4 . Indirectly . | . . . . . . . . . . . . . . . . . . . . . . . . . . . . . . . Trap Hack Attempts . | . . . . . . . . . . . . . . . . . . . . . . . . . . . . . . . Triggered . | . . . . . . . . . . . . . . . . . . . . . . . . . . . . . . . Disarmed . | . . . . . . . . . . . . . . . . . . . . . . . . . . . . . . . Reprogrammed 18 | . . . . . . . . . . . . . 12 . . . . . . . . . 6 . . . . . . . Reused 4 | . . . . . . . . . . . . . 3 . . . . . . . 1 . . . . . . . . . Traps Extracted . | . . . . . . . . . . . . . . . . . . . . . . . . . . . . . . . Installed 8 | . . 3 . . . . . 1 . . . . . . . . . . . . 4 . . . . . . . . . Triggered 15 | . . . . 1 . . . 1 . . . . 3 3 . . . 1 . . 1 . 4 . 1 . . . . . Most Traps Carried 4 | . . . . . . . . . . . . . . . . . . . . 4 4 . . . . . . . . . Machines | -11 -10 -10 -9 -9 -9 -8 -8 -8 -8 -8 -7 -7 -7 -7 -6 -6 -6 -6 -6 -6 -5 -5 -5 -5 -5 -5 -4 -4 -4 -4 ---------- Run | Yrd Mat Min Mat Min Exi Min Mat Gar Mat Gar Fac Gar Fac Gar Fac Was Fac Gar Fac Gar Fac Was Fac Gar Fac Gar Fac Was Fac Gar Machines Disabled 162 | . 14 2 16 4 . 7 5 10 12 6 . 10 2 11 22 . 2 4 1 11 7 . 1 5 9 . . . 1 . Max in Single Turn 4 | . 1 1 1 1 . 1 1 1 1 1 . 2 . 1 1 . 1 2 1 2 1 . . 2 4 . . . 1 . Garrison Access 5 | . . . . . . . . . . . 1 . 1 . . . . . . . 1 . 1 . 1 . . . . . Garrison Relay 42 | . . . . . . . . 6 . 5 . 5 . 8 . . . 4 . 4 . . . 4 . 6 . . . . Phase Generator 5 | . . . . . . . . . . . . 1 . 1 . . . 1 . 1 . . . 1 . . . . . . Machines Repaired . | . . . . . . . . . . . . . . . . . . . . . . . . . . . . . . . Machines Dismantled 10 | . . . . . . . . . . . . . . . . . . . . . . . . 4 . 6 . . . . Machines Sabotaged 1 | . . . . . . . . . . . . . . . . . . . . . . . 1 . . . . . . . Overloaded Fab Kills . | . . . . . . . . . . . . . . . . . . . . . . . . . . . . . . . Hacking | -11 -10 -10 -9 -9 -9 -8 -8 -8 -8 -8 -7 -7 -7 -7 -6 -6 -6 -6 -6 -6 -5 -5 -5 -5 -5 -5 -4 -4 -4 -4 --------- Run | Yrd Mat Min Mat Min Exi Min Mat Gar Mat Gar Fac Gar Fac Gar Fac Was Fac Gar Fac Gar Fac Was Fac Gar Fac Gar Fac Was Fac Gar Machines Accessed 202 | . 9 . 10 . 2 . 8 3 16 4 17 2 26 3 18 . 8 2 3 3 17 . 22 2 17 2 3 . 5 . Terminals 115 | . 6 . 6 . . . 5 3 10 4 10 2 13 3 10 . 3 2 . 3 8 . 14 2 7 2 1 . 1 . Fabricators 17 | . . . . . . . . . . . 2 . 2 . 4 . 2 . 1 . 2 . . . 3 . . . 1 . Repair Stations 13 | . 1 . 1 . . . . . 2 . . . 2 . 1 . 1 . 1 . . . 1 . 1 . . . 2 . Recycling Units 15 | . 2 . 1 . . . 1 . 2 . 1 . 2 . 1 . . . . . 2 . 1 . 1 . 1 . . . Scanalyzers 21 | . . . 2 . . . 1 . 1 . 2 . 3 . 2 . 1 . . . 3 . 3 . 2 . 1 . . . Garrison Access 19 | . . . . . . . 1 . 1 . 2 . 4 . . . 1 . 1 . 2 . 3 . 3 . . . 1 . Total Hacks 754 | . 28 . 38 . 5 . 31 8 60 11 65 7 113 6 58 . 25 8 6 8 84 . 95 5 47 9 20 . 17 . Successful 449 | . 12 . 21 . 5 . 12 6 46 4 43 3 83 6 26 . 17 2 5 4 48 . 49 4 26 3 13 . 11 . Failed 301 | . 15 . 17 . . . 18 2 14 7 22 4 29 . 32 . 8 6 1 4 35 . 46 1 21 6 7 . 6 . Catastrophic 43 | . . . 3 . . . 5 1 1 3 3 . 2 . 8 . 3 . . . 2 . 7 . 4 1 . . . . Database Lockouts 4 | . 1 . . . . . 1 . . . . . 1 . . . . . . . 1 . . . . . . . . . Manual 260 | . 6 . 7 . 1 . 15 5 22 6 21 5 50 3 10 . 3 1 . 3 31 . 40 3 12 5 5 . 6 . Terminals 468 | . 21 . 22 . . . 20 8 36 11 42 7 75 6 36 . 10 8 . 8 49 . 66 5 22 9 3 . 4 . Fabricators 39 | . . . . . . . . . . . 4 . 6 . 10 . 3 . 2 . 6 . . . 5 . . . 3 . Repair Stations 37 | . 2 . 1 . . . . . 4 . . . 5 . 6 . 3 . 3 . . . 3 . 4 . . . 6 . Recycling Units 50 | . 5 . 2 . . . 7 . 4 . 3 . 8 . 1 . . . . . 7 . 4 . 3 . 6 . . . Scanalyzers 106 | . . . 13 . . . 3 . 14 . 10 . 7 . 5 . 8 . . . 14 . 12 . 9 . 11 . . . Garrison Access 49 | . . . . . . . 1 . 2 . 6 . 12 . . . 1 . 1 . 8 . 10 . 4 . . . 4 . Terminal Hacks 193 | . 7 . 10 . 5 . 6 3 18 4 18 2 44 3 11 . 4 1 . 3 17 . 24 2 7 2 1 . 1 . Record 4 | . . . . . 4 . . . . . . . . . . . . . . . . . . . . . . . . . Part Schematic 29 | . . . . . . . 1 . 5 . 7 . 7 . 2 . . . . . 4 . 2 . . . 1 . . . Robot Schematic 8 | . . . 1 . . . . . . . . . 4 . 1 . . . . . . . 1 . 1 . . . . . Robot Analysis 12 | . 1 . 2 . . . . . 2 . 1 . 5 . . . . . . . 1 . . . . . . . . . Prototype ID Bank 23 | . 1 . 1 . . . 3 . 2 . 3 . 4 . 1 . . . . . 2 . 3 . 2 . . . 1 . Open Door 4 | . . . . . . . . 1 . 1 . . . . . . . . . 1 . . . . . 1 . . . . Open DSF 1 | . . . . . . . . . . . . . . . . . . . . . . . 1 . . . . . . . Level Access Points 4 | . . . . . . . . . . . 1 . 1 . . . . . . . 1 . 1 . . . . . . . Branch Access Points 5 | . 1 . 1 . . . . . 1 . . . 1 . . . . . . . . . 1 . . . . . . . Emergency Access Points 8 | . . . . . . . . 1 . 1 . 1 . 1 . . . 1 . 1 . . . 1 . 1 . . . . Machine Index 4 | . . . . . . . . . . . 1 . 1 . 1 . . . . . 1 . . . . . . . . . Terminal Index 3 | . 1 . . . . . . . 1 . . . 1 . . . . . . . . . . . . . . . . . Fabricator Index 2 | . . . . . . . . . . . . . 1 . . . . . . . . . 1 . . . . . . . Scanalyzer Index 3 | . . . 1 . . . . . . . . . 1 . . . . . . . . . 1 . . . . . . . Garrison Index 1 | . . . . . . . . . . . . . . . . . . . . . . . 1 . . . . . . . Unreport Threat 20 | . . . 1 . . . 1 . 3 . 5 . 3 . 4 . . . . . 1 . 1 . 1 . . . . . Locate Traps 20 | . 2 . 2 . . . . . 4 . . . 3 . . . 1 . . . 2 . 4 . 2 . . . . . Reprogram Traps 4 | . . . . . . . . . . . . . 3 . . . . . . . . . 1 . . . . . . . Investigation Status 1 | . . . . . . . . . . . . . 1 . . . . . . . . . . . . . . . . . Recall Investigation 4 | . . . . . . . . . . . . . . . 1 . 1 . . . . . 1 . 1 . . . . . Recall Reinforcements 4 | . . . . . . . . . . . . . 2 . . . . . . . 1 . 1 . . . . . . . Recall Assault 2 | . . . . . . . . . . . . . 1 . . . . . . . . . 1 . . . . . . . Registered Components 5 | . . . 1 . . . . . . . . . 1 . 1 . . . . . 1 . 1 . . . . . . . Registered Prototypes 1 | . . . . . . . . . . . . . 1 . . . . . . . . . . . . . . . . . Zone Layout 12 | . 1 . . . . . 1 . . . . . 3 . . . 2 . . . 3 . 2 . . . . . . . Garrison Registry 2 | . . . . . . . . . . 1 . . . 1 . . . . . . . . . . . . . . . . Patrol Navigation 3 | . . . . . . . . . . 1 . 1 . . . . . . . 1 . . . . . . . . . . Security Stations 3 | . . . . . . . . 1 . . . . . 1 . . . . . . . . . 1 . . . . . . Derelict Proto ID Bank 1 | . . . . . 1 . . . . . . . . . . . . . . . . . . . . . . . . . Fabricator Hacks 27 | . . . . . . . . . . . 3 . 4 . 6 . 3 . 2 . 4 . . . 4 . . . 1 . Load Schematic 13 | . . . . . . . . . . . 1 . 2 . 3 . 1 . 1 . 2 . . . 2 . . . 1 . Build 14 | . . . . . . . . . . . 2 . 2 . 3 . 2 . 1 . 2 . . . 2 . . . . . Repair Station Hacks 26 | . 2 . 1 . . . . . 4 . . . 3 . 3 . 2 . 2 . . . 2 . 2 . . . 5 . Scan Component 14 | . 1 . . . . . . . 2 . . . 2 . 2 . 1 . 1 . . . 1 . 1 . . . 3 . Repair 11 | . 1 . . . . . . . 2 . . . 1 . 1 . 1 . 1 . . . 1 . 1 . . . 2 . Refit 1 | . . . 1 . . . . . . . . . . . . . . . . . . . . . . . . . . . Recycling Unit Hacks 16 | . 1 . 2 . . . 2 . 3 . 1 . 2 . 1 . . . . . 1 . 1 . 1 . 1 . . . Report Inventory 12 | . 1 . 1 . . . 1 . 2 . 1 . 2 . . . . . . . 1 . 1 . 1 . 1 . . . Retrieve Matter 1 | . . . . . . . . . . . . . . . 1 . . . . . . . . . . . . . . . Retrieve Components 3 | . . . 1 . . . 1 . 1 . . . . . . . . . . . . . . . . . . . . . Scanalyzer 75 | . . . 7 . . . 2 . 13 . 9 . 6 . 3 . 7 . . . 8 . 4 . 8 . 8 . . . Insert Component 36 | . . . 2 . . . 1 . 6 . 4 . 3 . 2 . 4 . . . 5 . 3 . 3 . 3 . . . Analyze 39 | . . . 5 . . . 1 . 7 . 5 . 3 . 1 . 3 . . . 3 . 1 . 5 . 5 . . . Garrison Access Hacks 20 | . . . . . . . 1 . 1 . 2 . 5 . . . 1 . 1 . 2 . 3 . 3 . . . 1 . Unlock Access 15 | . . . . . . . 1 . 1 . 1 . 3 . . . 1 . 1 . 2 . 2 . 2 . . . 1 . Seal Access 4 | . . . . . . . . . . . 1 . 1 . . . . . . . . . 1 . 1 . . . . . Coupler Status 1 | . . . . . . . . . . . . . 1 . . . . . . . . . . . . . . . . . Unauthorized Hacks 92 | . 2 . 1 . . . 1 3 7 . 10 1 19 3 2 . . 1 . 1 16 . 15 2 1 1 3 . 3 . Terminals 58 | . . . . . . . . 3 4 . 5 1 12 3 2 . . 1 . 1 11 . 10 2 . 1 . . 2 . Track 28 | . . . . . . . . 2 2 . 2 1 5 2 . . . 1 . 1 5 . 4 1 . 1 . . 1 . Assimilate 1 | . . . . . . . . . . . . . . . 1 . . . . . . . . . . . . . . . Botnet 20 | . . . . . . . . . 1 . 1 . 5 1 1 . . . . . 4 . 5 1 . . . . 1 . Disrupt 4 | . . . . . . . . 1 . . 1 . 1 . . . . . . . 1 . . . . . . . . . Operators 4 | . . . . . . . . . 1 . 1 . 1 . . . . . . . 1 . . . . . . . . . Sabotage 1 | . . . . . . . . . . . . . . . . . . . . . . . 1 . . . . . . . Fabricators 1 | . . . . . . . . . . . 1 . . . . . . . . . . . . . . . . . . . Prioritize 1 | . . . . . . . . . . . 1 . . . . . . . . . . . . . . . . . . . Repair Stations 1 | . . . . . . . . . . . . . . . . . . . . . . . 1 . . . . . . . Mechanics 1 | . . . . . . . . . . . . . . . . . . . . . . . 1 . . . . . . . Recycling Units 16 | . 2 . . . . . . . 1 . 2 . 3 . . . . . . . 4 . . . 1 . 3 . . . Reject 6 | . . . . . . . . . . . 1 . 1 . . . . . . . 2 . . . 1 . 1 . . . Recyclers 3 | . . . . . . . . . . . . . 1 . . . . . . . 1 . . . . . 1 . . . Mask 5 | . . . . . . . . . 1 . 1 . 1 . . . . . . . 1 . . . . . 1 . . . Tunnel 2 | . 2 . . . . . . . . . . . . . . . . . . . . . . . . . . . . . Scanalyzers 3 | . . . 1 . . . 1 . 1 . . . . . . . . . . . . . . . . . . . . . Extract 3 | . . . 1 . . . 1 . 1 . . . . . . . . . . . . . . . . . . . . . Garrison Access 13 | . . . . . . . . . 1 . 2 . 4 . . . . . . . 1 . 4 . . . . . 1 . Broadcast 1 | . . . . . . . . . . . 1 . . . . . . . . . . . . . . . . . . . Restock 1 | . . . . . . . . . . . . . . . . . . . . . . . 1 . . . . . . . Reprogram 10 | . . . . . . . . . 1 . 1 . 4 . . . . . . . 1 . 2 . . . . . 1 . Watchers 1 | . . . . . . . . . . . . . . . . . . . . . . . 1 . . . . . . . Data Cores Recovered 4 | . . . . . . . . . 1 . . . 1 . 1 . . . . . . . 1 . . . . . . . Used 2 | . . . . . . . . . 1 . . . . . 1 . . . . . . . . . . . . . . . Hacking Detections 161 | . 6 . 7 . . . 6 2 10 3 14 2 21 3 17 . 6 1 2 2 16 . 18 2 14 2 3 . 4 . Full Trace Events 40 | . 2 . 4 . . . 1 . 1 1 2 . 3 . 4 . 2 1 1 1 3 . 5 . 5 1 1 . 2 . Feedback Events 1 | . . . . . . . . . . . . . . . . . . . . . 1 . . . . . . . . . Corruption 1 | . . . . . . . . . . . . . . . . . . . . . 1 . . . . . . . . . Feedback Blocked . | . . . . . . . . . . . . . . . . . . . . . . . . . . . . . . . Robot Schematics Acquired 8 | . . . 1 . . . . . . . . . 4 . 1 . . . . . . . 1 . 1 . . . . . Robots Built 13 | . . . . . . . . . . . 3 . 2 . 1 . 5 . . . . . . . 2 . . . . . Authchips . | . . . . . . . . . . . . . . . . . . . . . . . . . . . . . . . Time 661 | . . . . . . . . . . . 134 . 67 . 40 . 286 . . . . . . . 134 . . . . . Total Robot Build Rating 52 | . . . . . . . . . . . 12 . 8 . 1 . 23 . . . . . . . 8 . . . . . Part Schematics Acquired 63 | . . . 6 . . . 3 . 13 . 10 . 10 . 3 . 3 . . . 7 . 2 . 3 . 3 . . . Parts Built 12 | . . . . . . . . . . . 2 . 2 . 4 . . . 1 . 1 . . . 2 . . . . . Authchips 1 | . . . . . . . . . . . . . . . . . . . . . 1 . . . . . . . . . Time 690 | . . . . . . . . . . . 42 . 42 . 126 . . . 102 . 239 . . . 139 . . . . . Total Part Build Rating 72 | . . . . . . . . . . . 8 . 8 . 24 . . . 8 . 6 . . . 18 . . . . . Parts Repaired 11 | . 1 . . . . . . . 2 . . . 1 . 1 . 1 . 1 . . . 1 . 1 . . . 2 . Time 569 | . 26 . . . . . . . 100 . . . 14 . 43 . 31 . 22 . . . 103 . 103 . . . 127 . Parts Recycled . | . . . . . . . . . . . . . . . . . . . . . . . . . . . . . . . Recycled Matter . | . . . . . . . . . . . . . . . . . . . . . . . . . . . . . . . Retrieved Matter . | . . . . . . . . . . . . . . . . . . . . . . . . . . . . . . . Retrieved Components 5 | . . . 1 . . . 3 . 1 . . . . . . . . . . . . . . . . . . . . . Parts Scanalyzed 29 | . . . 1 . . . 1 . 6 . 3 . 3 . 1 . 3 . . . 4 . 1 . 3 . 3 . . . Part Schematics Acquired 26 | . . . 1 . . . 1 . 6 . 3 . 3 . 1 . 3 . . . 3 . . . 3 . 2 . . . Parts Damaged 8 | . . . . . . . . . 1 . 1 . . . 1 . 1 . . . 1 . 1 . 1 . 1 . . . Bothacking | -11 -10 -10 -9 -9 -9 -8 -8 -8 -8 -8 -7 -7 -7 -7 -6 -6 -6 -6 -6 -6 -5 -5 -5 -5 -5 -5 -4 -4 -4 -4 ------------ Run | Yrd Mat Min Mat Min Exi Min Mat Gar Mat Gar Fac Gar Fac Gar Fac Was Fac Gar Fac Gar Fac Was Fac Gar Fac Gar Fac Was Fac Gar Used RIF Installer 9 | . . . . . . . . 1 . 1 . 1 . 1 . . . 2 . 1 . . . 1 . 1 . . . . Command Fork 1 | . . . . . . . . . . . . . . . . . . 1 . . . . . . . . . . . . Threat Obfuscator 2 | . . . . . . . . . . 1 . . . 1 . . . . . . . . . . . . . . . . Signal Jammer 1 | . . . . . . . . . . . . . . . . . . . . 1 . . . . . . . . . . Watcher Feeds 1 | . . . . . . . . . . . . 1 . . . . . . . . . . . . . . . . . . Alert ID Control 1 | . . . . . . . . . . . . . . . . . . . . . . . . 1 . . . . . . Structural Interface 1 | . . . . . . . . . . . . . . . . . . . . . . . . . . 1 . . . . Program Shield 1 | . . . . . . . . . . . . . . . . . . 1 . . . . . . . . . . . . Robots Hacked 178 | . . . . . . . . . . 10 12 8 13 9 39 . 2 4 3 14 24 . 8 5 13 5 3 4 2 . Non-combat 74 | . . . . . . . . . . . 8 . 12 . 12 . 2 . 3 . 18 . 6 . 8 . 3 . 2 . Combat 104 | . . . . . . . . . . 10 4 8 1 9 27 . . 4 . 14 6 . 2 5 5 5 . 4 . . Robot Hacks Applied 213 | . . . . . . . . . . 11 17 8 24 9 47 . 3 5 4 14 28 . 10 5 13 5 4 4 2 . parse_system 19 | . . . . . . . . . . 1 2 . 1 . 6 . 1 . 2 2 2 . . . . 1 1 . . . no_distress 3 | . . . . . . . . . . . . . . . 1 . . . 1 . 1 . . . . . . . . . generate_echo 2 | . . . . . . . . . . . . . 2 . . . . . . . . . . . . . . . . . find_chute 3 | . . . . . . . . . . . . . . . 1 . . . . . 2 . . . . . . . . . deconstruct_machine 1 | . . . . . . . . . . . . . . . 1 . . . . . . . . . . . . . . . map_walls 5 | . . . . . . . . . . . . . 1 . 1 . . . . . 1 . 1 . 1 . . . . . map_earth 5 | . . . . . . . . . . . 1 . 1 . . . . . . . 1 . 1 . . . . . 1 . find_fabricator 1 | . . . . . . . . . . . . . . . . . . . 1 . . . . . . . . . . . drop_inventory 9 | . . . . . . . . . . . 1 . 1 . 2 . . . . . 3 . 1 . . . 1 . . . locate_stockpiles 1 | . . . . . . . . . . . . . . . . . . . . . 1 . . . . . . . . . find_recycling 2 | . . . . . . . . . . . . . . . . . 1 . . . 1 . . . . . . . . . ignore_parts 11 | . . . . . . . . . . . . . . . . . 1 . . . 1 . 5 . 4 . . . . . deconstruct_bot 1 | . . . . . . . . . . . . . . . 1 . . . . . . . . . . . . . . . purge_threat 9 | . . . . . . . . . . . . . 6 . 1 . . . . . 2 . . . . . . . . . locate_traps 2 | . . . . . . . . . . . . . 2 . . . . . . . . . . . . . . . . . block_reporting 6 | . . . . . . . . . . . . . 1 . 2 . . . . . 3 . . . . . . . . . map_route 4 | . . . . . . . . . . . 1 . 1 . . . . . . . 1 . . . 1 . . . . . mark_security 1 | . . . . . . . . . . . 1 . . . . . . . . . . . . . . . . . . . relay_feed 1 | . . . . . . . . . . . 1 . . . . . . . . . . . . . . . . . . . disable_shields 1 | . . . . . . . . . . . 1 . . . . . . . . . . . . . . . . . . . redirect_shields 2 | . . . . . . . . . . . . . 2 . . . . . . . . . . . . . . . . . ignore_targets 4 | . . . . . . . . . . . . . . . . . . . . . . . . . . . . 4 . . find_shortcuts 1 | . . . . . . . . . . . . . . . . . . . . 1 . . . . . . . . . . find_garrison 2 | . . . . . . . . . . . 1 . . . 1 . . . . . . . . . . . . . . . link_fov 1 | . . . . . . . . . . . 1 . . . . . . . . . . . . . . . . . . . focus_fire 1 | . . . . . . . . . . . . . . . . . . . . 1 . . . . . . . . . . scatter_targeting 3 | . . . . . . . . . . . . . . . 1 . . . . . 1 . 1 . . . . . . . mark_system 1 | . . . . . . . . . . . 1 . . . . . . . . . . . . . . . . . . . disrupt_area 2 | . . . . . . . . . . . . . . . 2 . . . . . . . . . . . . . . . overload_power 1 | . . . . . . . . . . . . . . . . . . . . . 1 . . . . . . . . . amplify_resonance 3 | . . . . . . . . . . . 1 . 1 . 1 . . . . . . . . . . . . . . . disable_weapons 8 | . . . . . . . . . . . 1 . . . 3 . . . . 2 . . . 2 . . . . . . reboot_system 2 | . . . . . . . . . . . . . . 2 . . . . . . . . . . . . . . . . go_dormant 1 | . . . . . . . . . . 1 . . . . . . . . . . . . . . . . . . . . overwrite_iff 15 | . . . . . . . . . . 3 . 1 . . 6 . . 1 . 1 1 . . . 2 . . . . . streamctrl_low 2 | . . . . . . . . . . . . . . . 2 . . . . . . . . . . . . . . . formatsys_low 12 | . . . . . . . . . . . . . 2 . 4 . . . . . 2 . . . 2 . 1 . 1 . formatsys_high 64 | . . . . . . . . . . 6 4 7 3 7 11 . . 4 . 7 4 . . 3 3 4 1 . . . formatsys_deep 1 | . . . . . . . . . . . . . . . . . . . . . . . 1 . . . . . . . Relay Couplers Released 71 | . . . . . . . . 11 . 9 . 9 2 13 . . . 6 . 6 1 . . 6 . 8 . . . . Machine Destruction 69 | . . . . . . . . 11 . 9 . 9 . 13 . . . 6 . 6 1 . . 6 . 8 . . . . Programmers 2 | . . . . . . . . . . . . . 2 . . . . . . . . . . . . . . . . . Attached 40 | . . . . . . . . . 1 3 1 4 3 8 1 . . 3 . 6 2 . . 3 . 4 1 . . . Fabnet Peak Effective % . | . . . . . . . . . . . . . . . . . . . . . . . . . . . . . . . Robots Rewired 10 | . . . . . . . . 4 . . . . . . . . . . . 1 . . . . . 4 1 . . . Allies Hacked 9 | . . . . . . . . . . . 2 . 3 . 1 . 1 2 . . . . . . . . . . . . Hacks Repelled 2 | . . . . . . . . . . . . . 2 . . . . . . . . . . . . . . . . . Allies | -11 -10 -10 -9 -9 -9 -8 -8 -8 -8 -8 -7 -7 -7 -7 -6 -6 -6 -6 -6 -6 -5 -5 -5 -5 -5 -5 -4 -4 -4 -4 -------- Run | Yrd Mat Min Mat Min Exi Min Mat Gar Mat Gar Fac Gar Fac Gar Fac Was Fac Gar Fac Gar Fac Was Fac Gar Fac Gar Fac Was Fac Gar Total Allies 154 | . . 5 . . . . . 6 3 11 7 8 10 9 24 . 6 4 . 13 8 . 7 5 11 9 4 1 3 . Largest Group 13 | . . 4 4 . . . . 4 3 8 9 8 6 5 13 . 3 2 . 5 7 . 6 3 4 7 9 2 3 . Highest-Rated Group 487 | . . 82 82 . . . . 84 64 171 240 144 170 227 480 . 94 64 . 178 247 . 225 123 116 487 487 95 138 . Highest-Rated Ally 99 | . . 31 31 . . . . 39 39 31 91 32 91 80 90 . 37 32 . 85 49 . 54 47 37 99 99 49 56 . Total Orders 4 | . . . . . . . . . . . . 2 . . . . . . . . . . . . . 1 1 . . . STAY 1 | . . . . . . . . . . . . 1 . . . . . . . . . . . . . . . . . . ROAM 1 | . . . . . . . . . . . . . . . . . . . . . . . . . . 1 . . . . FOLLOW 1 | . . . . . . . . . . . . 1 . . . . . . . . . . . . . . . . . . AID 1 | . . . . . . . . . . . . . . . . . . . . . . . . . . . 1 . . . Ally Attacks 1105 | . . . 64 . . . . 40 24 91 55 74 95 21 152 . 3 9 . 115 54 . 39 20 125 18 64 11 30 1 Total Damage 27679 | . . . 1241 . . . . 835 300 1356 1199 950 2482 351 6314 . 95 418 . 3044 1912 . 1504 432 1869 592 1897 305 528 55 Kills 206 | . . . 23 . . . . 10 2 14 9 5 24 2 51 . 1 1 . 16 18 . 4 . 12 3 6 . 5 . Allies Corrupted 9 | . . . . . . . . 1 . . . 1 . 1 3 . . 2 . . . . . . . . . 1 . . Allies Melted 2 | . . . . . . . . . . . . . . . . . . . . 1 . . 1 . . . . . . . Intel | -11 -10 -10 -9 -9 -9 -8 -8 -8 -8 -8 -7 -7 -7 -7 -6 -6 -6 -6 -6 -6 -5 -5 -5 -5 -5 -5 -4 -4 -4 -4 ------- Run | Yrd Mat Min Mat Min Exi Min Mat Gar Mat Gar Fac Gar Fac Gar Fac Was Fac Gar Fac Gar Fac Was Fac Gar Fac Gar Fac Was Fac Gar Robot Analysis Total 12 | . 1 . 2 . . . . . 2 . 1 . 5 . . . . . . . 1 . . . . . . . . . Derelict Logs Recovered 3 | . . 1 . 2 . . . . . . . . . . . . . . . . . . . . . . . . . . Drone Launches . | . . . . . . . . . . . . . . . . . . . . . . . . . . . . . . . Drone Recoveries . | . . . . . . . . . . . . . . . . . . . . . . . . . . . . . . . Exploration | -11 -10 -10 -9 -9 -9 -8 -8 -8 -8 -8 -7 -7 -7 -7 -6 -6 -6 -6 -6 -6 -5 -5 -5 -5 -5 -5 -4 -4 -4 -4 ------------- Run | Yrd Mat Min Mat Min Exi Min Mat Gar Mat Gar Fac Gar Fac Gar Fac Was Fac Gar Fac Gar Fac Was Fac Gar Fac Gar Fac Was Fac Gar Turns Passed 24428 | 156 638 232 504 231 126 274 628 1150 1241 857 1088 1456 1536 2664 1060 27 429 626 362 1421 1082 269 772 1553 1764 1407 274 119 453 29 Spaces Moved 26228 | 132 727 443 658 362 334 397 571 1358 1091 847 1423 1591 2001 1332 1344 76 620 770 332 1403 1621 348 1985 1268 1514 998 302 122 247 11 Core 294 | 132 76 . . . . . 1 1 . . . . . 80 1 . . . . . 1 . . 1 . . 1 . . . Treads 1165 | . . . . . . . . . . . . . . 1002 163 . . . . . . . . . . . . . . . Legs 72 | . . . . . . . . . . . . . . . . . . . . . . . . . . . . . 66 6 Wheels . | . . . . . . . . . . . . . . . . . . . . . . . . . . . . . . . Hover 4268 | . . . . . . . . . . . . . . . . . . . . . . . . 1147 1514 998 301 122 181 5 Flight 20429 | . 651 443 658 362 334 397 570 1357 1091 847 1423 1591 2001 250 1180 76 620 770 332 1403 1620 348 1985 120 . . . . . . Fastest Speed 16 | 50 37 37 29 29 29 50 50 50 50 50 50 50 50 50 28 28 28 34 28 28 16 21 18 50 47 47 47 47 51 90 Average Speed 49 | 50 39 37 30 29 35 50 50 50 50 50 50 50 50 159 47 28 32 34 33 28 27 21 20 55 56 56 47 52 126 106 Slowest Speed 275 | 50 50 37 112 29 50 50 150 200 50 50 50 50 50 275 160 28 34 34 102 28 100 21 79 160 134 134 150 132 190 120 Overloaded Moves 107 | . . . . . . . . . . . . . . . . . . . . . 1 . 106 . . . . . . . Propulsion Burnouts . | . . . . . . . . . . . . . . . . . . . . . . . . . . . . . . . Robots Hopped 111 | . 2 1 . . . 1 1 . 5 1 5 3 5 . 3 . 17 10 1 . 21 . 35 . . . . . . . Cave-ins Triggered . | . . . . . . . . . . . . . . . . . . . . . . . . . . . . . . . Exploration Rate (%) 63 | 5 93 98 69 64 78 90 48 97 88 98 43 99 58 96 35 72 20 80 8 99 54 96 54 89 50 97 10 76 5 4 Regions Visited 30 Branch Regions 4 Pre-discovered Areas 4 | . 2 . . 1 1 . . . . . . . . . . . . . . . . . . . . . . . . . Known Exits Taken 15 | . 1 1 1 1 1 1 1 . 1 . 1 . 1 . . . 1 . 1 . . . 1 . 1 . . . 1 . Unknown Exits Taken 1 | 1 . . . . . . . . . . . . . . . . . . . . . . . . . . . . . . Scrap Searched 3 | . . 1 . 1 . 1 . . . . . . . . . . . . . . . . . . . . . . . . Spaces Dug 20 | . . . 2 . . . 1 10 1 . 1 2 1 1 . . . . . . 1 . . . . . . . . . Terrain Destroyed 797 | . . 7 44 18 . 74 1 52 25 10 1 73 1 131 14 . . 71 4 92 25 1 2 80 55 14 . 1 1 . Melee 11 | . . . 2 . . . 1 2 1 . 1 2 1 1 . . . . . . . . . . . . . . . . Projectile 61 | . . . . . . 7 . 1 5 . . . . . . . . . 2 21 23 . . . . . . 1 1 . AOE 709 | . . 7 42 18 . 67 . 49 19 10 . 71 . 130 14 . . 71 . 71 . . . 78 51 11 . . . . Terrain Rammed . | . . . . . . . . . . . . . . . . . . . . . . . . . . . . . . . Walls Destroyed . | . . . . . . . . . . . . . . . . . . . . . . . . . . . . . . . Machines Disabled . | . . . . . . . . . . . . . . . . . . . . . . . . . . . . . . . Actions | -11 -10 -10 -9 -9 -9 -8 -8 -8 -8 -8 -7 -7 -7 -7 -6 -6 -6 -6 -6 -6 -5 -5 -5 -5 -5 -5 -4 -4 -4 -4 --------- Run | Yrd Mat Min Mat Min Exi Min Mat Gar Mat Gar Fac Gar Fac Gar Fac Was Fac Gar Fac Gar Fac Was Fac Gar Fac Gar Fac Was Fac Gar Total 34301 | 183 937 500 874 434 342 439 765 1652 1610 1115 1661 2057 2369 1684 1701 80 802 1042 526 2197 2093 447 2243 1853 2212 1551 403 155 352 22 Wait 3239 | . 53 40 112 25 . 8 67 108 243 93 85 267 124 44 125 . 131 44 95 342 271 . 139 143 427 166 41 9 37 . Move 25994 | 131 723 440 657 361 333 394 569 1357 1080 844 1413 1584 1990 1331 1338 75 588 752 330 1402 1579 347 1918 1267 1514 997 302 121 246 11 Hop 99 | . 1 1 . . . 1 1 . 5 1 4 3 5 . 3 . 14 7 1 . 21 . 31 . . . . . . . Pick Up 125 | 2 4 . 10 2 . 1 . 9 4 2 1 5 6 7 8 1 5 4 4 11 12 2 7 5 2 3 4 1 3 . Fast Attach 209 | 3 10 2 4 1 3 . 5 5 16 6 6 12 8 23 14 2 5 6 6 10 12 2 4 13 6 5 . 4 16 . Attach 57 | 1 . . 4 . . 2 . 3 5 . 3 . 4 5 1 . 4 1 . 1 7 . 2 . 2 2 5 1 3 1 Detach 40 | . 1 . 2 . 1 . . . 5 . 2 . 3 3 2 . 2 2 1 1 4 . . . 2 . 3 2 1 3 Swap 133 | . 4 2 9 2 . 2 2 . . 4 2 1 7 11 8 . 3 4 2 13 13 . 6 9 6 20 2 . 1 . Drop 261 | . 8 2 12 2 5 3 5 10 17 7 5 14 10 24 19 2 7 5 6 19 22 4 11 19 8 6 3 . 4 2 Fire 1875 | 46 90 4 7 2 . 7 . 7 145 17 20 13 37 20 100 . 32 83 58 205 106 92 72 234 193 220 23 17 21 4 Melee 738 | . 29 2 41 25 . 13 73 85 32 77 70 104 87 100 . . . . . . . . . . . . . . . . Ram . | . . . . . . . . . . . . . . . . . . . . . . . . . . . . . . . Kick . | . . . . . . . . . . . . . . . . . . . . . . . . . . . . . . . Crush . | . . . . . . . . . . . . . . . . . . . . . . . . . . . . . . . Escape Stasis 391 | . . . . . . . . 8 . 15 10 18 8 20 . . . 95 . 62 . . 31 80 . 44 . . . . Rewire 29 | . . . . . . . . 26 . . . . 1 . . . . . . 1 . . . . . 1 . . . . Trap 8 | . . 3 . . . . . 1 . . . . . . . . . . . . 4 . . . . . . . . . Miscellaneous 1103 | . 14 4 16 14 . 8 43 33 58 49 40 36 79 96 83 . 11 39 23 130 42 . 22 83 52 87 20 . 20 1 Route ------- -11/Scrapyard -10/Materials (discovered 4 exits: *Mat x3 / *Min) -10/Mines (discovered 2 exits: *Mat x2) -9/Materials (discovered 4 exits: *Mat x2 / *Min x2) -9/Mines -9/Exiles (discovered 2 exits: *Min x2) -8/Mines (discovered 2 exits: *Mat x2) -8/Materials (discovered 3 exits: *Fac x2 / Gar) -8/Garrison (discovered 3 exits: *Mat x3) -8/Materials (discovered 4 exits: *Fac x3 / Gar) -8/Garrison (discovered 3 exits: *Fac x3) -7/Factory (discovered 7 exits: *Fac x4 / *Low x2 / Gar) -7/Garrison (discovered 3 exits: *Fac x3) -7/Factory (discovered 11 exits: *Fac x4 / *Sto x2 / *Low x2 / Gar / Gar / Gar) -7/Garrison (discovered 3 exits: *Fac x3) -6/Factory (discovered 6 exits: *Fac x2 / [*Low x2] / [*Ext x2]) -6/Waste -6/Factory (discovered 4 exits: *Fac / [*Low] / [Ext] / Gar) -6/Garrison (discovered 3 exits: *Fac x3) -6/Factory -6/Garrison (discovered 3 exits: *Fac x3) -5/Factory (discovered 6 exits: *Fac x4 / *Upp / Gar) -5/Waste -5/Factory (discovered 8 exits: *Fac x4 / *Upp x2 / Gar / Gar) -5/Garrison (discovered 3 exits: *Fac x3) -5/Factory (discovered 4 exits: *Fac x2 / Gar / Gar) -5/Garrison (discovered 3 exits: *Fac x3) -4/Factory -4/Waste -4/Factory -4/Garrison History --------- Turn | Location | Event 1 | -11/Scrapyard | Upgraded with Propulsion slot (x1) 1 | -11/Scrapyard | Upgraded with Utility slot (x2) 3 | -11/Scrapyard | Discovered new exit (range 17) 157 | -11/Scrapyard | Entered Materials 183 | -10/Materials | Central database locked down 251 | -10/Materials | Core integrity fell below 50% 287 | -10/Materials | Identified exit to Mines 301 | -10/Materials | Build established: Mutant 316 | -10/Materials | Discovered new exit (range 5) 442 | -10/Materials | Reached level 2 445 | -10/Materials | Upgraded with Utility slot (x1) 449 | -10/Materials | Discovered new exit (range 12) 577 | -10/Materials | Repaired Flight Unit 589 | -10/Materials | Discovered new exit (range 3) 757 | -10/Materials | Reached level 3 760 | -10/Materials | Upgraded with Utility slot (x1) 795 | -10/Materials | Entered Mines 797 | -10/Mines | Assisted by bots powering up and referring to "LRC-V3" 825 | -10/Mines | Found a hidden stash of uninstalled traps 826 | -10/Mines | Discovered new exit (range 16) 855 | -10/Mines | Found a damaged Exp. Sensor Array with a note attached 856 | -10/Mines | Found Prototype Device 856 | -10/Mines | Identified Exp. Sensor Array 956 | -10/Mines | Learned Materials garrison access intel 977 | -10/Mines | Discovered new exit (range 8) 986 | -10/Mines | Identified exit to Materials 1027 | -10/Mines | Entered Materials 1027 | -9/Materials | Accompanied by 4 allies 1029 | -9/Materials | Reached level 4 1032 | -9/Materials | Led the pair of lost Derelicts to an unsafe place 1123 | -9/Materials | Reached level 5 1142 | -9/Materials | Upgraded with Propulsion slot (x1) 1144 | -9/Materials | Upgraded with Power slot (x1) 1163 | -9/Materials | Build established: Ninja 1166 | -9/Materials | Identified exit to Mines 1195 | -9/Materials | Reached level 6 1201 | -9/Materials | Upgraded with Utility slot (x1) 1242 | -9/Materials | Reached level 7 1260 | -9/Materials | Discovered new exit (range 7) 1373 | -9/Materials | Discovered new exit (range 11) 1425 | -9/Materials | Lost 3 allies 1427 | -9/Materials | First assault squad dispatched 1467 | -9/Materials | Reached level 8 1470 | -9/Materials | Upgraded with Utility slot (x1) 1507 | -9/Materials | Destroyed 8 combat bots 1513 | -9/Materials | Core integrity fell below 50% 1531 | -9/Materials | Entered Mines 1536 | -9/Mines | Core integrity fell below 20% 1572 | -9/Mines | Reached level 9 1678 | -9/Mines | Learned Materials stockpile data 1685 | -9/Mines | Learned location of Zion (-6) 1692 | -9/Mines | Received a Rocket Launcher from a helpful Derelict 1712 | -9/Mines | Assembled infested the area 1760 | -9/Mines | Deemed a non-threat by the Exiles lab entrance 1761 | -9/Mines | Discovered new exit (range 5) 1761 | -9/Mines | Identified exit to Exiles 1762 | -9/Mines | Entered Exiles 1766 | -9/Exiles | Discovered new exit (range 16) 1769 | -9/Exiles | Met 8R-AWN 1774 | -9/Exiles | Met EX-HEX 1785 | -9/Exiles | Met EX-DEC 1793 | -9/Exiles | Visited The Gauntlet 1814 | -9/Exiles | Met EX-BIN 1820 | -9/Exiles | Aligned with FarCom system 1820 | -9/Exiles | Given EX-Vault access code 1827 | -9/Exiles | Opened EX-Vault 1830 | -9/Exiles | Upgraded with Propulsion slot (x1) 1832 | -9/Exiles | Found Flying Fortress v7 1835 | -9/Exiles | Upgraded with Weapon slot (x1) 1836 | -9/Exiles | Found AWS/Gauss 1839 | -9/Exiles | Found Modified TNC 1851 | -9/Exiles | Warned to stay clear of 0b10 Research branches 1884 | -9/Exiles | Discovered new exit (range 10) 1887 | -9/Exiles | Identified exit to Mines 1888 | -9/Exiles | Stole three prototypes: Flying Fortress v7, AWS/Gauss, Modified TNC 1888 | -9/Exiles | Entered Mines 1890 | -8/Mines | Discovered new exit (range 10) 1921 | -8/Mines | Identified exit to Materials 1930 | -8/Mines | Discovered exit to Materials (range 5) 1934 | -8/Mines | Reached level 10 2162 | -8/Mines | Entered Materials 2163 | -8/Materials | Core integrity fell below 50% 2164 | -8/Materials | Loaded intel: 1 garrison access location 2164 | -8/Materials | Reached level 11 2237 | -8/Materials | Core integrity fell below 20% 2244 | -8/Materials | Reached level 12 2421 | -8/Materials | Central database locked down 2484 | -8/Materials | Discovered new exit (range 4) 2485 | -8/Materials | Identified exit to Factory 2564 | -8/Materials | Discovered exit to Factory (range 14) 2790 | -8/Materials | Identified exit to Garrison 2790 | -8/Materials | Entered Garrison 2792 | -8/Garrison | Reached level 13 2802 | -8/Garrison | Triggered checkpoint 2824 | -8/Garrison | Garrison Relay disabled 2830 | -8/Garrison | Garrison Relay disabled 2834 | -8/Garrison | Upgraded with Utility slot (x1) 2840 | -8/Garrison | Triggered checkpoint 2907 | -8/Garrison | Upgraded with Utility slot (x1) 2968 | -8/Garrison | Triggered checkpoint 3005 | -8/Garrison | Discovered new exit (range 11) 3010 | -8/Garrison | Learned Materials security intel 3024 | -8/Garrison | Triggered checkpoint 3065 | -8/Garrison | Garrison Relay disabled 3106 | -8/Garrison | Triggered checkpoint 3132 | -8/Garrison | Identified exit to Materials 3148 | -8/Garrison | Triggered checkpoint 3175 | -8/Garrison | Garrison Relay disabled 3248 | -8/Garrison | Triggered checkpoint 3287 | -8/Garrison | Triggered checkpoint 3307 | -8/Garrison | Reached level 14 3331 | -8/Garrison | Lost 3 allies 3342 | -8/Garrison | Triggered checkpoint 3384 | -8/Garrison | Triggered checkpoint 3441 | -8/Garrison | Discovered exit to Materials (range 16) 3464 | -8/Garrison | Build established: Hacker-Ninja 3522 | -8/Garrison | Discovered exit to Materials (range 12) 3526 | -8/Garrison | Installed Relay Interface Framework 3565 | -8/Garrison | Garrison Relay disabled 3566 | -8/Garrison | Triggered checkpoint 3634 | -8/Garrison | Rescued a captive Derelict 3644 | -8/Garrison | Rescued a captive Derelict 3940 | -8/Garrison | Entered Materials 3940 | -8/Materials | Accompanied by 2 allies 4036 | -8/Materials | Garrison activated, responded to threat 4211 | -8/Materials | Repaired Imp. Heavy Armor Plating 4357 | -8/Materials | Discovered exit to Factory (range 4) 4361 | -8/Materials | Build established: Hacker-Scout 4615 | -8/Materials | Garrison activated, responded to threat 4742 | -8/Materials | Identified exit to Garrison 4924 | -8/Materials | Reached level 15 4935 | -8/Materials | Upgraded with Utility slot (x1) 4942 | -8/Materials | Discovered exit to Factory (range 7) 5125 | -8/Materials | Repaired Imp. Heavy Armor Plating 5146 | -8/Materials | Build established: Hacker-Ninja 5148 | -8/Materials | Discovered exit to Factory (range 10) 5181 | -8/Materials | Entered Garrison 5204 | -8/Garrison | Triggered checkpoint 5253 | -8/Garrison | Rescued a captive Derelict 5254 | -8/Garrison | Rescued a captive Derelict 5356 | -8/Garrison | Garrison Relay disabled 5373 | -8/Garrison | Garrison Relay disabled 5423 | -8/Garrison | Triggered checkpoint 5486 | -8/Garrison | Triggered checkpoint 5545 | -8/Garrison | Garrison Relay disabled 5556 | -8/Garrison | Expanded RIF knowledge: Threat Obfuscation 5562 | -8/Garrison | Triggered checkpoint 5603 | -8/Garrison | Discovered exit to Factory (range 13) 5632 | -8/Garrison | Triggered checkpoint 5673 | -8/Garrison | Discovered exit to Factory (range 12) 5694 | -8/Garrison | Triggered checkpoint 5712 | -8/Garrison | Garrison Relay disabled 5813 | -8/Garrison | Discovered exit to Factory (range 15) 5842 | -8/Garrison | Triggered checkpoint 5872 | -8/Garrison | Garrison Relay disabled 5878 | -8/Garrison | Discovered exit to Factory (range 77) 5878 | -8/Garrison | Discovered exit to Factory (range 43) 5878 | -8/Garrison | Discovered exit to Factory (range 6) 5971 | -8/Garrison | Spotted B-75 Beast 5997 | -8/Garrison | Allies destroyed B-75 Beast 6025 | -8/Garrison | Lost 3 allies 6038 | -8/Garrison | Entered Factory 6038 | -7/Factory | Accompanied by 5 allies 6040 | -7/Factory | FarCom data flow suspended 6040 | -7/Factory | Reached level 16 6223 | -7/Factory | Fabricated B-48 Gladiator? 6338 | -7/Factory | Build established: Hacker-Mutant 6345 | -7/Factory | Identified exit to Factory 6362 | -7/Factory | Discovered new exit (range 5) 6626 | -7/Factory | Cargo convoy interrupted 6650 | -7/Factory | Core integrity fell below 50% 6661 | -7/Factory | Core integrity fell below 20% 6664 | -7/Factory | Lost 3 allies 6843 | -7/Factory | Discovered new exit (range 16) 6958 | -7/Factory | Identified exit to Garrison 7036 | -7/Factory | Fabricated Powered Armor? 7126 | -7/Factory | Entered Garrison 7128 | -7/Garrison | Reached level 17 7142 | -7/Garrison | Triggered checkpoint 7344 | -7/Garrison | Destroyed 9 combat bots 7367 | -7/Garrison | Garrison Relay disabled 7474 | -7/Garrison | Triggered checkpoint 7507 | -7/Garrison | Garrison Relay disabled 7518 | -7/Garrison | Triggered checkpoint 7529 | -7/Garrison | Discovered new exit (range 3) 7603 | -7/Garrison | Expanded RIF knowledge: Watcher Feeds 7683 | -7/Garrison | Phase Generator disabled 7744 | -7/Garrison | Triggered checkpoint 7835 | -7/Garrison | Heavy support dispatched to Factory 7978 | -7/Garrison | Triggered checkpoint 8021 | -7/Garrison | Heavy support dispatched to Factory 8058 | -7/Garrison | Triggered checkpoint 8069 | -7/Garrison | Garrison Relay disabled 8097 | -7/Garrison | Discovered new exit (range 11) 8114 | -7/Garrison | Garrison Relay disabled 8136 | -7/Garrison | Triggered checkpoint 8192 | -7/Garrison | Triggered checkpoint 8222 | -7/Garrison | H-XX Assembler disabled 8252 | -7/Garrison | Garrison Relay disabled 8261 | -7/Garrison | Discovered new exit (range 8) 8488 | -7/Garrison | Triggered checkpoint 8582 | -7/Garrison | Entered Factory 8582 | -7/Factory | Accompanied by 4 allies 8719 | -7/Factory | Discovered exit to Factory (range 6) 8802 | -7/Factory | Discovered new exit (range 4) 8843 | -7/Factory | Garrison activated, responded to threat 8855 | -7/Factory | Identified exit to Garrison 9059 | -7/Factory | Discovered new exit (range 18) 9062 | -7/Factory | Identified exit to Storage 9084 | -7/Factory | Central database locked down 9135 | -7/Factory | Reached level 18 9136 | -7/Factory | Fabricated Powered Armor? 9294 | -7/Factory | Identified exit to Garrison 9416 | -7/Factory | Identified exit to Lower Caves 9633 | -7/Factory | Fabricated P-60 Hacker? 9709 | -7/Factory | Build established: Hacker-Scout 9783 | -7/Factory | Hacker 4b assimilated hostile S-27 Virus 9853 | -7/Factory | Identified exit to Garrison 9959 | -7/Factory | Cargo convoy interrupted 10013 | -7/Factory | Lost 5 allies 10049 | -7/Factory | Destroyed 7 combat bots 10069 | -7/Factory | Repaired Powered Armor 10118 | -7/Factory | Entered Garrison 10148 | -7/Garrison | Triggered checkpoint 10184 | -7/Garrison | Garrison Relay disabled 10444 | -7/Garrison | Triggered checkpoint 10444 | -7/Garrison | Triggered checkpoint 10504 | -7/Garrison | Triggered checkpoint 10534 | -7/Garrison | Triggered checkpoint 10566 | -7/Garrison | Build established: Hacker-Mutant 10650 | -7/Garrison | Triggered checkpoint 10805 | -7/Garrison | Garrison Relay disabled 10838 | -7/Garrison | Discovered exit to Factory (range 3) 11104 | -7/Garrison | Learned Factory security intel 11281 | -7/Garrison | Phase Generator disabled 11428 | -7/Garrison | Garrison Relay disabled 11448 | -7/Garrison | Triggered checkpoint 11467 | -7/Garrison | Discovered exit to Factory (range 12) 11516 | -7/Garrison | System corruption reached 10% 11867 | -7/Garrison | Build established: Bothacker-Assassin 11948 | -7/Garrison | Triggered checkpoint 11976 | -7/Garrison | Expanded RIF knowledge: Threat Obfuscation 11989 | -7/Garrison | Discovered exit to Factory (range 11) 12043 | -7/Garrison | Discovered exit to Factory (range 71) 12043 | -7/Garrison | Discovered exit to Factory (range 19) 12043 | -7/Garrison | Discovered exit to Factory (range 55) 12444 | -7/Garrison | Build established: Bothacker-Mutant 12508 | -7/Garrison | Found embedded Infiltrators 12536 | -7/Garrison | Garrison Relay disabled 12607 | -7/Garrison | Garrison Relay disabled 12607 | -7/Garrison | Garrison Relay disabled 12609 | -7/Garrison | Garrison Relay disabled 12708 | -7/Garrison | Garrison Relay disabled 12782 | -7/Garrison | Entered Factory 12782 | -6/Factory | Accompanied by 5 allies 12784 | -6/Factory | Reached level 19 12903 | -6/Factory | Fabricated Adv. Force Field? 13099 | -6/Factory | Discovered new exit (range 16) 13132 | -6/Factory | First assault squad dispatched 13207 | -6/Factory | Discovered new exit (range 17) 13238 | -6/Factory | Discovered new exit (range 7) 13253 | -6/Factory | Identified exit to Factory 13276 | -6/Factory | Fabricated M-13 Machinist (x1) 13342 | -6/Factory | Build established: Bothacker-Scout 13408 | -6/Factory | Repaired Broken Imp. Remote Shield 13450 | -6/Factory | Cargo convoy interrupted 13511 | -6/Factory | Lost 6 allies 13526 | -6/Factory | Reached level 20 13662 | -6/Factory | Fabricated Powered Armor? 13695 | -6/Factory | Discovered exit to Factory (range 17) 13722 | -6/Factory | Lost 11 allies 13772 | -6/Factory | Discovered new exit (range 14) 13829 | -6/Factory | Discovered new exit (range 16) 13842 | -6/Factory | Sucked down chute 13842 | -6/Factory | Entered Waste 13845 | -6/Waste | Spotted C-40 Crusher 13851 | -6/Waste | Found Broken Heavy Servo Lattice 13854 | -6/Waste | Spotted C-40 Crusher 13862 | -6/Waste | Spotted C-40 Crusher 13866 | -6/Waste | Spotted C-40 Crusher 13866 | -6/Waste | Discovered new exit (range 10) 13868 | -6/Waste | Identified exit to Factory 13869 | -6/Waste | Entered Factory 13870 | -6/Factory | Discovered exit to Factory (range 23) 14035 | -6/Factory | Repaired Heavy Servo Lattice 14185 | -6/Factory | Discovered new exit (range 17) 14196 | -6/Factory | Spotted B-75 Beast 14219 | -6/Factory | Search patrols dispatched 14224 | -6/Factory | Discovered new exit (range 10) 14231 | -6/Factory | Fabricated P-60 Hacker? 14270 | -6/Factory | Fabricated G-50 Soldier? 14297 | -6/Factory | Identified exit to Garrison 14298 | -6/Factory | Entered Garrison 14327 | -6/Garrison | Garrison Relay disabled 14352 | -6/Garrison | Spotted B-75 Beast 14356 | -6/Garrison | Triggered checkpoint 14400 | -6/Garrison | Triggered checkpoint 14403 | -6/Garrison | Garrison Relay disabled 14484 | -6/Garrison | Discovered new exit (range 6) 14487 | -6/Garrison | Identified exit to Factory 14527 | -6/Garrison | Phase Generator disabled 14630 | -6/Garrison | Destroyed B-75 Beast 14711 | -6/Garrison | Discovered exit to Factory (range 13) 14730 | -6/Garrison | Core integrity fell below 50% 14758 | -6/Garrison | Triggered checkpoint 14768 | -6/Garrison | P-60 Hacker assimilated allied Guardian 5e 14866 | -6/Garrison | Discovered exit to Factory (range 12) 14870 | -6/Garrison | Expanded RIF knowledge: Command Fork 14877 | -6/Garrison | Garrison Relay disabled 14879 | -6/Garrison | Garrison Relay disabled 14894 | -6/Garrison | Triggered checkpoint 14902 | -6/Garrison | System corruption reached 10% 14908 | -6/Garrison | Expanded RIF knowledge: Program Shield 14924 | -6/Garrison | Entered Factory 14997 | -6/Factory | Repaired Powered Armor 15112 | -6/Factory | Fabricated Imp. Diametric Drive? 15274 | -6/Factory | Search patrols dispatched 15286 | -6/Factory | Identified exit to Garrison 15286 | -6/Factory | Entered Garrison 15291 | -6/Garrison | Triggered checkpoint 15311 | -6/Garrison | Garrison Relay disabled 15454 | -6/Garrison | Triggered checkpoint 15498 | -6/Garrison | Core integrity fell below 20% 15537 | -6/Garrison | Garrison Relay disabled 15556 | -6/Garrison | Triggered checkpoint 15584 | -6/Garrison | Rescued a captive Derelict 15585 | -6/Garrison | Rescued a captive Derelict 15602 | -6/Garrison | Reached level 21 15604 | -6/Garrison | Upgraded with Utility slot (x1) 15639 | -6/Garrison | Discovered exit to Factory (range 3) 15738 | -6/Garrison | Spotted B-86 Titan 15742 | -6/Garrison | Spotted B-90 Cyclops 15743 | -6/Garrison | Rewired B-75 Beast 15785 | -6/Garrison | Allies destroyed B-86 Titan 15846 | -6/Garrison | Allies destroyed B-90 Cyclops 15950 | -6/Garrison | Triggered checkpoint 15974 | -6/Garrison | Build established: Botlord-Scout 16029 | -6/Garrison | Garrison Relay disabled 16048 | -6/Garrison | Triggered checkpoint 16077 | -6/Garrison | Discovered exit to Factory (range 11) 16089 | -6/Garrison | Expanded RIF knowledge: Signal Jamming 16158 | -6/Garrison | Triggered checkpoint 16265 | -6/Garrison | Discovered exit to Factory (range 13) 16330 | -6/Garrison | Phase Generator disabled 16342 | -6/Garrison | Triggered checkpoint 16395 | -6/Garrison | Garrison Relay disabled 16406 | -6/Garrison | Triggered checkpoint 16707 | -6/Garrison | Entered Factory 16707 | -5/Factory | Accompanied by 4 allies 16826 | -5/Factory | Identified exit to Garrison 16890 | -5/Factory | Discovered new exit (range 6) 16892 | -5/Factory | Reached level 22 16892 | -5/Factory | Identified exit to Factory 16892 | -5/Factory | Upgraded with Weapon slot (x1) 16894 | -5/Factory | Central database locked down 16961 | -5/Factory | Discovered new exit (range 11) 16968 | -5/Factory | Identified exit to Upper Caves 17411 | -5/Factory | Identified exit to Garrison 17434 | -5/Factory | Fabricated Imp. Powered Armor? 17497 | -5/Factory | Build established: Bothacker-Scout 17700 | -5/Factory | Cargo convoy interrupted 17712 | -5/Factory | Found Prototype Device 17712 | -5/Factory | Identified Exp. Phase Shifter 17719 | -5/Factory | Found Prototype Energy Cannon 17720 | -5/Factory | Identified Exp. Thermic Cannon 17789 | -5/Factory | Sucked down chute 17789 | -5/Factory | Entered Waste 17789 | -5/Waste | The area was eerily silent 17959 | -5/Waste | Discovered new exit (range 13) 17994 | -5/Waste | Murdered 3 allies 18000 | -5/Waste | A Compactor rumbled back to life 18003 | -5/Waste | Build established: Hacker-Scout 18015 | -5/Waste | Spotted C-40 Crusher 18015 | -5/Waste | Identified exit to Factory 18052 | -5/Waste | Destroyed C-40 Crusher 18058 | -5/Waste | Entered Factory 18288 | -5/Factory | Identified exit to Garrison 18324 | -5/Factory | Assimilated ARC 6a with formatsys_deep 18363 | -5/Factory | Repaired Broken Centrium Leg? 18425 | -5/Factory | Discovered exit to Factory (range 4) 18567 | -5/Factory | Garrison activated, responded to threat 18739 | -5/Factory | Cargo convoy interrupted 18773 | -5/Factory | Found Exp. Signal Interpreter 18778 | -5/Factory | Found Exp. Core Analyzer 18828 | -5/Factory | Spotted B-75 Beast 18829 | -5/Factory | Identified exit to Garrison 18830 | -5/Factory | Entered Garrison 18832 | -5/Garrison | Reached level 23 18852 | -5/Garrison | Triggered checkpoint 18889 | -5/Garrison | Garrison Relay disabled 19024 | -5/Garrison | Triggered checkpoint 19122 | -5/Garrison | Discovered new exit (range 15) 19170 | -5/Garrison | Phase Generator disabled 19180 | -5/Garrison | Identified exit to Factory 19186 | -5/Garrison | H-XX Assembler disabled 19314 | -5/Garrison | Triggered checkpoint 19359 | -5/Garrison | Lost 3 allies 19697 | -5/Garrison | Discovered exit to Factory (range 13) 19722 | -5/Garrison | Triggered checkpoint 19782 | -5/Garrison | Expanded RIF knowledge: Alert ID Control 19806 | -5/Garrison | Garrison Relay disabled 19864 | -5/Garrison | Discovered exit to Factory (range 14) 20055 | -5/Garrison | Garrison Relay disabled 20058 | -5/Garrison | Triggered checkpoint 20122 | -5/Garrison | Triggered checkpoint 20182 | -5/Garrison | Triggered checkpoint 20188 | -5/Garrison | Triggered checkpoint 20232 | -5/Garrison | Garrison Relay disabled 20244 | -5/Garrison | Learned Factory security intel 20368 | -5/Garrison | Found Relay Coupler [Proto] 20383 | -5/Garrison | Entered Factory 20404 | -5/Factory | Identified exit to Garrison 20783 | -5/Factory | Repaired Broken Cmb. Linear Gravjet 20867 | -5/Factory | Spotted B-75 Beast 20894 | -5/Factory | Discovered exit to Factory (range 16) 21026 | -5/Factory | Fabricated Cmb. Linear Gravjet? 21073 | -5/Factory | Discovered exit to Factory (range 12) 21883 | -5/Factory | Fabricated P-60 Hacker? 22147 | -5/Factory | Identified exit to Garrison 22147 | -5/Factory | Entered Garrison 22162 | -5/Garrison | Triggered checkpoint 22168 | -5/Garrison | Core integrity fell below 50% 22265 | -5/Garrison | Build established: Hacker-Skirmisher 22362 | -5/Garrison | Spotted B-75 Beast 22398 | -5/Garrison | Triggered checkpoint 22477 | -5/Garrison | Garrison Relay disabled 22589 | -5/Garrison | Destroyed B-75 Beast 22636 | -5/Garrison | Discovered exit to Factory (range 22) 22676 | -5/Garrison | Triggered checkpoint 22700 | -5/Garrison | Reached level 24 22714 | -5/Garrison | Garrison Relay disabled 22723 | -5/Garrison | Expanded RIF knowledge: Structural Interface 22728 | -5/Garrison | Triggered checkpoint 22834 | -5/Garrison | Triggered checkpoint 22905 | -5/Garrison | Garrison Relay disabled 22915 | -5/Garrison | Discovered exit to Factory (range 10) 22916 | -5/Garrison | Spotted B-75 Beast 22981 | -5/Garrison | Destroyed B-75 Beast 23020 | -5/Garrison | Triggered checkpoint 23097 | -5/Garrison | Build established: Botlord-Scout 23105 | -5/Garrison | Garrison Relay disabled 23113 | -5/Garrison | Garrison Relay disabled 23208 | -5/Garrison | Triggered checkpoint 23358 | -5/Garrison | Core integrity fell below 20% 23383 | -5/Garrison | Garrison Relay disabled 23420 | -5/Garrison | Discovered exit to Factory (range 10) 23459 | -5/Garrison | Spotted Striker 23465 | -5/Garrison | Rewired Striker 23467 | -5/Garrison | Rewired Striker 23492 | -5/Garrison | Assimilated Striker with formatsys_high 23504 | -5/Garrison | Triggered checkpoint 23554 | -5/Garrison | Entered Factory 23554 | -4/Factory | Accompanied by 7 allies 23555 | -4/Factory | Core integrity fell below 50% 23580 | -4/Factory | Spotted B-86 Titan 23593 | -4/Factory | Allies destroyed B-86 Titan 23719 | -4/Factory | Spotted B-86 Titan 23736 | -4/Factory | Reached level 25 23762 | -4/Factory | Lost 9 allies 23777 | -4/Factory | Discovered new exit (range 17) 23781 | -4/Factory | Upgraded with Utility slot (x1) 23781 | -4/Factory | Upgraded with Weapon slot (x1) 23820 | -4/Factory | Garrison activated, responded to threat 23828 | -4/Factory | Sucked down chute 23828 | -4/Factory | Entered Waste 23829 | -4/Waste | Met a frightened Derelict 23830 | -4/Waste | 1 allies followed down the chute 23837 | -4/Waste | Spotted C-40 Crusher 23843 | -4/Waste | EMP discharged 23844 | -4/Waste | Spotted C-40 Crusher 23846 | -4/Waste | Spotted C-40 Crusher 23847 | -4/Waste | Spotted C-40 Crusher 23860 | -4/Waste | Spotted C-40 Crusher 23866 | -4/Waste | Discovered new exit (range 11) 23870 | -4/Waste | Identified exit to Factory 23909 | -4/Waste | Destroyed C-40 Crusher 23930 | -4/Waste | Crushed by Compactor (1 part destroyed, 2 dropped) 23935 | -4/Waste | Crushed by Compactor (1 part destroyed, 1 dropped) 23943 | -4/Waste | EMP discharged 23943 | -4/Waste | System corruption reached 10% 23947 | -4/Waste | Entered Factory 23988 | -4/Factory | Repaired Imp. Powered Armor 24104 | -4/Factory | Core integrity fell below 20% 24156 | -4/Factory | Identified exit to Garrison 24225 | -4/Factory | Build established: Botlord-Skirmisher 24279 | -4/Factory | Repaired Cld. Proton Cannon 24328 | -4/Factory | Garrison activated, responded to threat 24368 | -4/Factory | Found Quantum Capacitor 24400 | -4/Factory | Entered Garrison 24400 | -4/Garrison | Accompanied by 1 ally 24429 | -4/Garrison | Destroyed by G-67 Veteran with Field Laser Last Messages --------------- 24403_ Slug penetrates Wall. 24403_ Y-64 Sentinel springs to life. 24403_ H-77 Assassin destroyed. 24405_ Penetrated by Slug. 24408_ System corrupted: Energy discharge (-99). 24408_ Slug penetrates Wall. 24408_ Penetrated by Slug. 24412_ Slug penetrates Y-64 Sentinel. 24414_ Penetrated by Slug. 24414_ Y-64 Sentinel misfires. 24414_ Slug penetrates Wall. 24416_ Lgt. Angular Momentum Engine destroyed. 24416_ Penetrated by Slug. 24418_ Slug penetrates G-67 Veteran. 24419_ Critical hit (Burn: +37). 24419_ Penetrated by Slug. 24421_ Dropped Quantum Capacitor. 24422_ Penetrated by Slug. 24424_ Dropped Exp. Phase Shifter. 24428_ Penetrated by Slug. Map ----- +----------------------------------------------------+ | ??????????????????????????????????????????????? | | ??????????????????????????????????????????????? | | ??????????????????????????????????????????????? | | ??????????????????????????????????????????????? | | ??????????????????????????????????????????????? | | ??????????????????????????????????????????????? | | ??????????????????????????????????????????????? | | ??????????????????????????????????????????????? | | ??????????????????????????????????????????????? | | ??????????????????????????????????????????????? | | ??????????????????????????????????????????????? | | ??????????????????????????????????????????????? | | ??????????????????????????????????????????????? | | ??????????????????????????????????????????????? | | ??????????????????????????????????????????????? | | ??????????????????????????????????????????????? | | ??????????????????????????????????????????????? | | ??????????????????????????????????????????????? | | ??????????????????????????????????????????????? | | ??????????????????????????????????????????????? | | ??????????????????????????????????????????????? | | ??????????????????????????????????????????????? | | ??????????????????????##+##???????????????????? | | ??????????????????????# #??????????????#????? | | ???????????# ######### ########+"# #????? | | ???????????# @ ![ g Y#????? | | ???????????# =%! g # #????? | | ????????????###################### #?????????? | | ??????????????????????????????????????????????? | | ??????????????????????????????????????????????? | | ??????????????????????????????????????????????? | | ??????????????????????????????????????????????? | | ??????????????????????????????????????????????? | | ??????????????????????????????????????????????? | | ??????????????????????????????????????????????? | | ??????????????????????????????????????????????? | | ??????????????????????????????????????????????? | | ??????????????????????????????????????????????? | | ??????????????????????????????????????????????? | | ??????????????????????????????????????????????? | | ??????????????????????????????????????????????? | | ??????????????????????????????????????????????? | | ??????????????????????????????????????????????? | | ??????????????????????????????????????????????? | | ??????????????????????????????????????????????? | | ??????????????????????????????????????????????? | | ??????????????????????????????????????????????? | | ??????????????????????????????????????????????? | | ??????????????????????????????????????????????? | | ??????????????????????????????????????????????? | +----------------------------------------------------+ Best States ------------- Heat Dissipation 59 Energy Generation 56 Energy Capacity 730 Matter Stores 300 Matter Capacity 300 Sight Range 17 Robot Scan Range 20 Terrain Scan Range 20 Terrain Scan Density 210 ECM Strength 1 Jamming Range 16 Power Amplification 40 Additional Mass Support 12 Armor Coverage 800 Resistance: TH 10 Resistance: EM 25 Utility Shielding 33 Phase Shifting 20 Evasion (%) 86 Targeting Accuracy 5 Melee Accuracy 8 Target Analysis 5 Core Analysis 8 Recoil Reduction 4 Matter Filtering 50 Offensive Hacking 25 Defensive Hacking 20 Relay Coupler Types 6 Relay Coupler Value 397 Authchip Count 1 Trap Extractor Capacity 6 Item Schematics ----------------- Exp. Sensor Array | -9/Materials | Scanalyzed Imp. Medium Laser | -9/Materials | Extracted Imp. Ion Engine | -9/Materials | Extracted Aluminum Leg | -9/Materials | Extracted Particle Cannon | -9/Materials | Extracted Hpw. Tractor Beam | -9/Materials | Extracted Shock Bomb Launcher | -8/Materials | Scanalyzed Insulated Plating | -8/Materials | Extracted Hacking Suite | -8/Materials | Hacked Adv. Weight Redist. System | -8/Materials | Scanalyzed Imp. Heavy Armor Plating | -8/Materials | Scanalyzed Imp. Deuterium Engine | -8/Materials | Scanalyzed Imp. Terrain Scanner | -8/Materials | Scanalyzed ECM Suite | -8/Materials | Scanalyzed Maul | -8/Materials | Scanalyzed Adv. Beam Cannon | -8/Materials | Extracted Ion Cannon | -8/Materials | Extracted Hvy. Flail | -8/Materials | Hacked Hvy. Mace | -8/Materials | Hacked Great Maul | -8/Materials | Hacked Lgt. Nuclear Core | -8/Materials | Hacked Cld. Ion Engine | -8/Materials | Hacked Imp. Proton Missile Launcher | -7/Factory | Hacked Adv. ECM Suite | -7/Factory | Hacked Hrd. Heavy Armor Plating | -7/Factory | Hacked Powered Armor | -7/Factory | Hacked Mic. Nuclear Core | -7/Factory | Hacked Fusion Compressor | -7/Factory | Hacked Adv. Cooling System | -7/Factory | Hacked Adv. Shield Generator | -7/Factory | Scanalyzed Mni. Fusion Reactor | -7/Factory | Scanalyzed Thunder Hammer | -7/Factory | Scanalyzed Adv. Transmission Jammer | -7/Factory | Scanalyzed Imp. Signal Interpreter | -7/Factory | Hacked Imp. Cooling System | -7/Factory | Hacked Component Analysis Suite | -7/Factory | Hacked Recalibrator | -7/Factory | Hacked System Restoration Module | -7/Factory | Scanalyzed Imp. Remote Shield | -7/Factory | Scanalyzed Impact Mace | -7/Factory | Hacked Stasis Canceller | -7/Factory | Hacked Lgt. Fission Core | -7/Factory | Hacked Remote Force Field | -6/Factory | Hacked Cld. Plasma Cannon | -6/Factory | Hacked Adv. Force Field | -6/Factory | Scanalyzed Heavy Servo Lattice | -6/Factory | Scanalyzed Imp. Diametric Drive | -6/Factory | Scanalyzed Gravity Neutralizer | -6/Factory | Scanalyzed Imp. Powered Armor | -5/Factory | Hacked Adv. Power Amplifier | -5/Factory | Scanalyzed Railgun | -5/Factory | Scanalyzed Stealth Drone Bay | -5/Factory | Hacked Exp. Matter Compressor | -5/Factory | Hacked Lgt. Particle Reactor | -5/Factory | Hacked Cld. Proton Cannon | -5/Factory | Scanalyzed Biometal Leg | -5/Factory | Hacked Cmb. Antigrav System | -5/Factory | Hacked Cld. Q-thruster | -5/Factory | Scanalyzed Cmb. Linear Gravjet | -5/Factory | Scanalyzed Quantum Reactor | -5/Factory | Scanalyzed Imp. Heavy Siege Treads | -4/Factory | Hacked Imp. Energy Mantle | -4/Factory | Scanalyzed Exp. Power Amplifier | -4/Factory | Scanalyzed Robot Schematics ------------------ M-13 Machinist | -9/Materials | Hacked G-47 Trooper | -7/Factory | Hacked P-60 Hacker | -7/Factory | Hacked S-27 Virus | -7/Factory | Hacked M-28 Smith | -7/Factory | Hacked B-48 Gladiator | -6/Factory | Hacked B-60 Warrior | -5/Factory | Hacked G-50 Soldier | -5/Factory | Hacked Fabricated ------------ B-48 Gladiator | x3 | -7/Factory | Preloaded Powered Armor | x2 | -7/Factory Powered Armor | x2 | -7/Factory P-60 Hacker | x2 | -7/Factory Adv. Force Field | x2 | -6/Factory | Preloaded M-13 Machinist | x1 | -6/Factory Powered Armor | x2 | -6/Factory P-60 Hacker | x2 | -6/Factory G-50 Soldier | x3 | -6/Factory | Preloaded Imp. Diametric Drive | x1 | -6/Factory Imp. Powered Armor | x1 | -5/Factory | Authchip Cmb. Linear Gravjet | x2 | -5/Factory P-60 Hacker | x2 | -5/Factory Alien Tech Used ----------------- None Achievements -------------- None Challenges ------------ None RPGLIKE | -11 -10 -10 -9 -9 -9 -8 -8 -8 -8 -8 -7 -7 -7 -7 -6 -6 -6 -6 -6 -6 -5 -5 -5 -5 -5 -5 -4 -4 -4 -4 --------- Run | Yrd Mat Min Mat Min Exi Min Mat Gar Mat Gar Fac Gar Fac Gar Fac Was Fac Gar Fac Gar Fac Was Fac Gar Fac Gar Fac Was Fac Gar Levels Raised 24 | . 2 . 5 1 . 1 2 2 1 . 1 1 1 . 2 . . . . 1 1 . . 1 . 1 1 . . . XP Earned 39535 | 3000 3072 650 7425 1309 169 2181 2957 2190 1123 791 1977 1196 979 790 2288 46 111 538 65 649 1870 67 441 806 562 570 1190 67 253 203 XP Spent 38970 | 2800 3100 . 6670 . 1600 . 160 6500 2900 . 540 2460 1090 . 1360 . 90 . . 3200 800 1100 . . . . 4600 . . . Upgrades 63 | 8 3 . 10 . 2 . 4 6 1 . 6 13 2 . 2 . 1 . . 1 1 1 . . . . 2 . . . Power Slot 1 | . . . 1 . . . . . . . . . . . . . . . . . . . . . . . . . . . Propulsion Slot 3 | 1 . . 1 . 1 . . . . . . . . . . . . . . . . . . . . . . . . . Utility Slot 11 | 2 2 . 2 . . . . 2 1 . . . . . . . . . . 1 . . . . . . 1 . . . Weapon Slot 3 | . . . . . 1 . . . . . . . . . . . . . . . 1 . . . . . 1 . . . Core Integrity 22 | . . . . . . . 4 . . . 6 12 . . . . . . . . . . . . . . . . . . Heat Dissipation 4 | . . . 2 . . . . . . . . . 1 . 1 . . . . . . . . . . . . . . . Energy Generation 1 | . . . . . . . . . . . . 1 . . . . . . . . . . . . . . . . . . Mass Support 3 | 1 1 . . . . . . . . . . . . . . . . . . . . 1 . . . . . . . . Inventory Capacity 5 | 2 . . 1 . . . . . . . . . 1 . 1 . . . . . . . . . . . . . . . Sight Range 1 | 1 . . . . . . . . . . . . . . . . . . . . . . . . . . . . . . Terrain Scan Density 2 | 1 . . . . . . . . . . . . . . . . 1 . . . . . . . . . . . . . Melee Accuracy 2 | . . . . . . . . 2 . . . . . . . . . . . . . . . . . . . . . . Hack Attack % 3 | . . . 2 . . . . 1 . . . . . . . . . . . . . . . . . . . . . . Hack Defense % 2 | . . . 1 . . . . 1 . . . . . . . . . . . . . . . . . . . . . . Protomatter Created 6167 | . 134 25 37 17 . 133 313 151 452 300 214 329 329 628 46 . 148 309 46 349 257 . 303 777 296 472 56 . 46 . Integrity Restored 23017 | . 291 75 304 303 . 186 939 672 1273 1056 865 783 1713 2010 1785 . 196 879 525 2845 842 . 413 1525 1182 1446 468 . 417 24 Core 20581 | . 291 75 220 303 . 186 939 599 985 643 757 783 1713 2010 1502 . 188 879 525 2414 688 . 218 1126 1182 1446 468 . 417 24 Parts 2436 | . . . 84 . . . . 73 288 413 108 . . . 283 . 8 . . 431 154 . 195 399 . . . . . . Protomatter Decayed 1755 | . 13 . 33 . . 36 . 47 15 6 103 60 129 43 80 . 24 74 . . 364 . 194 192 19 138 147 . 38 . Game ------ Seed NeutronTimingFlamer Manual? 0 Play Time 10:32:28 Cumulative 569.0 hours Start 2024.02.20 @ 16:58:39 End 2024.02.26 @ 04:44:00 Sessions 13 Manual Loads 0 Difficulty Rogue Special Mode Winter2019/RPGLIKE Game No. 215 Rogue 194 Adventurer 3 Explorer 18 Win Type - Total 13 Types 8/2/1/1/0/1/0/0/0 Lore% 85 Gallery% 94 Achievement% 82 Wizard Run 0 Options --------- Layout 2 ASCII 0 Keyboard 0 Movement Mouse Keybinds 0 Fullscreen 2 Font 24/Smallcaps Map View 50x44 Zoom Use 0% Tactical HUD 1 Map Filters NONE Filters NONE Steam 1 RUN: d4bd8485-574a-4299-b17f-d95f8090c214